Workbook

Sheet Sheet1
A1: 附件
A2: 花都区2018年政府投资项目计划表
U3: 单位：万元
A4: 序号 | B4: 项目名称 | C4: 建设性质（新开工、续建、竣工、前期） | D4: 建设规模 | E4: 建设起止年限 | F4: 计划总投资 | G4: 资金来源 | L4: 至2017年底累计完成投资 | M4: 至2017年底区财政累计支付 | N4: 2018年计划 | T4: 2018年度需区财政实际支付 | U4: 2018年主要建设内容 | V4: 牵头区领导 | W4: 项目牵头 单位 | X4: 责任人及 联系电话 | Y4: 联系人及 联系电话 | Z4: 备注
N5: 投资 | O5: 其中
G6: 市投资 | H6: 区投资 | I6: 镇（街）或区属园区自筹 | J6: 企业自筹 | K6: 其他 | O6: 市投资 | P6: 区投资 | Q6: 镇（街）或区属园区自筹 | R6: 企业自筹 | S6: 其他
A7: 总计（含42个已完工，2018年需财政支付项目，共296个） | F7: 8868891 | G7: 2061218 | H7: 5177029 | I7: 285113 | J7: 1058519 | K7: 287012 | L7: 862013 | M7: 345864 | N7: 1697404 | O7: 377382 | P7: 1111322 | Q7: 2850 | R7: 152266 | S7: 53584 | T7: =SUM(T8,T275) -> 1044910
A8: 合计（254个） | F8: =SUM(G8:K8) -> 8946151 | G8: =SUM(G9,G122,G128,G234) -> 2082018 | H8: =SUM(H9,H122,H128,H234) -> 5232729 | I8: 285873 | J8: 1058519 | K8: 287012 | L8: 862013 | M8: 345864 | N8: 1697404 | O8: 377382 | P8: 1111322 | Q8: 2850 | R8: 152266 | S8: 53584 | T8: 966191
A9: 一、国际空铁枢纽（107个） | F9: =SUM(G9:K9) -> 5779450 | G9: =SUM(G10,G19,G91,G114) -> 1712893 | H9: =SUM(H10,H19,H91,H114) -> 3194096 | I9: 277011 | J9: 585100 | K9: 10350 | L9: 597949 | M9: 198745 | N9: 1026778 | O9: 273934 | P9: 650794 | Q9: 1600 | R9: 100000 | S9: 450 | T9: 566212
A10: （一）重大交通基础设施（7个） | F10: =SUM(G10:K10) -> 3149208 | G10: =SUM(G11:G18) -> 473600 | H10: =SUM(H11:H18) -> 2090508 | J10: 585100 | L10: 538381 | M10: 179492 | N10: 683653 | O10: 209709 | P10: 373944 | R10: 100000 | T10: 332245
A11: 1 | B11: 广州北站综合交通枢纽项目 | C11: 续建 | D11: 建设广州北站综合站房工程、广州北站综合交通枢纽配套基础设施一期和二期工程、农新路高架桥工程（云山桥-广清高速新华站立交）、云山路东侧高架桥工程、滨湖路（雅瑶桥-新街大道）工程、工业大道（新街大道-荔红南路）拓宽改造工程、广州北站综合交通枢纽开发建设项目（首期）安置区 | E11: 2015 - 2020 | F11: 1799276 | H11: 1214176 | J11: 585100 | L11: 284055 | N11: 265448 | P11: 165448 | R11: 100000 | T11: 165448 | U11: 广清城际站房、安置区及市政配套建设 | V11: 姚汉钟 | W11: 交通局 | X11: 刘德康 86883005 | Y11: 黄艳敏 86883110 | Z11: 省、市、区重点项目
A12: 2 | B12: 广州北站至广州白云国际机场快速通道 | C12: 续建 | D12: 花都部分包括雅瑶路段和新街大道段两条线路，该项目实施花都区段，全长约8公里 | E12: 2015 - 2019 | F12: 316533 | G12: 63307 | H12: =F12-G12 -> 253226 | L12: 33820 | M12: 22198 | N12: 102000 | O12: 24400 | P12: 77600 | T12: 62080 | U12: 道路、隧道、桥梁建设 | V12: 叶志良 | W12: 交通局 | X12: 吴勐 36899665 | Y12: 赖学全 86885506 | Z12: 省、市、区重点项目 市投资转移支付
C13: 新开工 | D13: 白云部分包括雅瑶路段和新街大道段两条线路，该项目实施花都区段，全长约1.1公里 | E13: 2016 - 2020 | F13: 40684 | G13: 8137 | H13: =F13-G13 -> 32547 | L13: 614 | M13: 263 | N13: 3000 | O13: =N13*0.2 -> 600 | P13: =N13*0.8 -> 2400 | T13: =P13*0.8 -> 1920 | U13: 道路、隧道、桥梁建设 | V13: 叶志良 | W13: 交通局 | X13: 吴勐 36899665 | Y13: 赖学全 86885506 | Z13: 省、市、区重点项目 市投资转移支付
A14: 3 | B14: 红棉大道工程 | C14: 续建 | D14: 南段:全长8.13公里，城市快速路，规划路宽50-60米，设计车速60公里/小时，双向8车道 北段:全长约10.5公里，宽50米 | E14: 2015 - 2020 | F14: 297902 | G14: 59580 | H14: 238322 | L14: 74688 | M14: 50287 | N14: 66276 | O14: 15780 | P14: 50496 | T14: 40397 | U14: 南段：道路、箱涵、桥梁建设 北段：征地拆迁及桥梁桩基础施工 | V14: 姚汉钟 | W14: 交通局 | X14: 吴勐 36899665 | Y14: 赖学全 86885506 | Z14: 省、市、区重点项目
A15: 4 | B15: 花都大道（机场北进场路口至红棉大道段）扩建改造工程 | C15: 续建 | D15: 长约14.2公里，宽50-60米 | E15: 2015 - 2019 | F15: 222237 | H15: 222237 | L15: 40204 | M15: 40204 | N15: 77000 | P15: 77000 | T15: 61600 | U15: 道路建设 | V15: 叶志良 | W15: 交通局 | X15: 吴勐 36899665 | Y15: 吴文青 36915272 | Z15: 省、市、区重点项目
A16: 5 | B16: 花都大道快速化改造（花山立交-花东立交） | C16: 续建 | D16: 全长约6.22公里，规划红线宽度60米 | E16: 2017 - 2019 | F16: 201794 | G16: 201794 | L16: 75000 | M16: 48390 | N16: 100000 | O16: 100000 | U16: 道路建设 | V16: 姚汉钟 | W16: 交通局 | X16: 吴勐 36899665 | Y16: 赖学全 86885506 | Z16: 省、市、区重点项目 市投资转移支付
A17: 6 | B17: 机场北进场路（花都大道-山前旅游大道） | C17: 续建 | D17: 全长6.27公里，规划红线宽度60米 | E17: 2017 - 2020 | F17: 140782 | G17: 140782 | L17: 30000 | M17: 18150 | N17: 68929 | O17: 68929 | U17: 道路建设 | V17: 姚汉钟 | W17: 交通局 | X17: 吴勐 36899665 | Y17: 赖学全 86885506 | Z17: 省、市、区重点项目 市投资转移支付
A18: 7 | B18: 旧107国道升级改造工程 | C18: 前期 | D18: 长12.4公里，双向四~八车道，宽52.75-85米 | E18: 2019 - 2020 | F18: 130000 | H18: 130000 | N18: 1000 | P18: 1000 | T18: 800 | U18: 前期工作，征地拆迁，道路建设 | V18: 姚汉钟 | W18: 交通局 | X18: 吴勐 36899665 | Y18: 郭玉柱 36807776 | Z18: 区重点项目
A19: （二）城区市政路网建设项目（71个） | F19: =SUM(G19:K19) -> 2356231 | G19: =SUM(G20:G90) -> 1239293 | H19: =SUM(H20:H90) -> 1103588 | I19: 3000 | K19: 10350 | L19: 33671 | M19: 14267 | N19: 217178 | O19: 64225 | P19: 150903 | Q19: 1600 | S19: 450 | T19: 132666
A20: 8 | B20: 花都智能交通管理系统工程 | C20: 竣工 | D20: 根据《花都区智能交通管理系统发展规划》（2016-2020）安排，新增SCATS型号控制路口40个，新增动态交通信息板15块 | E20: 2018 | F20: 2600 | H20: 2600 | N20: 2600 | P20: 2600 | T20: 2600 | U20: 前期工作，系统建设 | V20: 黄跃强 | W20: 区公安分局 | X20: 黄跃强13924003438 | Y20: 黎嘉辉13902397105 | Z20: 区重点项目
A21: 9 | B21: 炭步大桥重建工程 | C21: 续建 | D21: 全长约1.71公里，宽40米 | E21: 2017 - 2020 | F21: 27511 （包含征地拆迁费2700） | G21: 14427 | H21: 13084 | L21: 4454 | M21: 3461 | N21: 6380 | O21: 3500 | P21: 2880 | T21: 2304 | U21: 右幅新桥建设 | V21: 姚汉钟 | W21: 交通局 | X21: 吴勐 36899665 | Y21: 周钿槟 36807877 | Z21: 区重点项目 市投资转移支付
A22: 10 | B22: 迎宾大道（G106国道-公益路）路面重铺工程 | C22: 续建 | D22: 全长6.85公里,红线宽度60米 | E22: 2017 - 2019 | F22: 12054 | H22: 12054 | L22: 3500 | M22: 3178 | N22: 3750 | P22: 3750 | T22: 3000 | U22: 道路建设 | V22: 姚汉钟 | W22: 交通局 | X22: 吴勐 36899665 | Y22: 赖学全 86885506 | Z22: 区重点项目
A23: 11 | B23: 进垃圾场道路（山前大道-红崩岗水库）工程（又名狮清路工程） | C23: 续建 | D23: 长3.9公里，宽15.5米 | E23: 2014 - 2019 | F23: 10000 （包含征地拆迁费5162.3） | H23: 10000 | L23: 4992 | M23: 892 | N23: =O23+P23 -> 6250 | P23: =T23/0.8 -> 6250 | T23: 5000 | U23: 道路建设及征地拆迁工作 | V23: 姚汉钟 | W23: 交通局 | X23: 吴勐 36899665 | Y23: 赖学全 86885506
A24: 12 | B24: 工业大道（新街大道-G107-花港大道）跨天马河桥梁工程 | C24: 续建 | D24: 长0.78公里，宽33米 | E24: 2014 - 2019 | F24: 9550 | H24: 9550 | L24: 2625 | M24: 2100 | N24: 6925 | P24: 6925 | T24: =P24*0.8 -> 5540 | U24: 桥梁上部结构及部分桩基 | V24: 姚汉钟 | W24: 交通局 | X24: 吴勐 36899665 | Y24: 赖学全 86885506 | Z24: 区重点项目
A25: 13 | B25: 民俗博物馆周边道路工程 | C25: 续建 | D25: 东接新街大道，西至G107国道，全长约0.48公里，宽40米 | E25: 2014 - 2019 | F25: 5893 (征地拆迁2593) | H25: 5893 | L25: 3051 | M25: 2622 | N25: 1728 | P25: 1728 | T25: 1382 | U25: 道路建设 | V25: 姚汉钟 | W25: 交通局 | X25: 吴勐 36899665 | Y25: 赖学全 86885506
A26: 14 | B26: 金狮大道（X284两赤）路面改造工程（南航大道-芙蓉大道） | C26: 续建 | D26: 长约6公里，宽15米-40米 | E26: 2017 - 2019 | F26: 5337 | H26: 5337 | L26: 1150 | M26: 208 | N26: 3563 | P26: 3563 | T26: 2850 | U26: 道路建设 | V26: 姚汉钟 | W26: 交通局 | X26: 吴勐 36899665 | Y26: 吴文青 36915272 | Z26: 区重点项目
A27: 15 | B27: 花都主城区交通信号控制系统升级改造工程 | C27: 续建 | D27: 对主城区主要路口交通信号控制系统进行升级改造，在主干道设置交通诱导电子屏 | E27: 2017 - 2019 | F27: 3900 | H27: 3900 | L27: 1643 | M27: 27 | N27: 1408 | P27: 1408 | T27: 1126 | U27: 交通信号控制系统进行升级改造及交通诱导电子屏 | V27: 姚汉钟 | W27: 交通局 | X27: 吴勐 36899665 | Y27: 赖学全 86885506
A28: 16 | B28: Y762（中心村-马岭村）砼路面改造工程 | C28: 续建 | D28: 长约2.182公里，宽8米 | E28: 2017 - 2019 | F28: 2780 | H28: 2780 | L28: 520 | M28: 77 | N28: 1304 | P28: 1304 | T28: 1049 | U28: 道路建设 | V28: 姚汉钟 | W28: 交通局 | X28: 吴勐 36899665 | Y28: 吴文青 36915272
A29: 17 | B29: 三东大道东湖段辅道工程 | C29: 续建 | D29: 新建两条长约0.8公里，宽约16米的辅道 | E29: 2017 - 2019 | F29: 2500 | H29: 2500 | L29: 2200 | M29: 2174 | N29: 60 | P29: 60 | T29: 48 | U29: 管线迁改 | V29: 姚汉钟 | W29: 交通局 | X29: 吴勐 36899665 | Y29: 黄永洲 86883252
A30: 18 | B30: 工业大道（新街大道-G107-花港大道）跨天马河污水迁改工程 | C30: 续建 | D30: 总长0.706公里 | E30: 2017 - 2019 | F30: 2200 | H30: 2200 | L30: 100 | N30: 1250 | P30: 1250 | T30: 1000 | U30: 检查井开挖及顶管 | V30: 姚汉钟 | W30: 交通局 | X30: 吴勐 36899665 | Y30: 赖学全 86885506
A31: 19 | B31: X280雅硖线改造工程（K0+860-K1+600） | C31: 续建 | D31: 长约0.74公里，宽10米 | E31: 2017 - 2019 | F31: 2016 | H31: 2016 | L31: 542 | M31: 233 | N31: 1310 | P31: 1310 | T31: 1048 | U31: 道路建设 | V31: 姚汉钟 | W31: 交通局 | X31: 吴勐 36899665 | Y31: 吴文青 36915272
A32: 20 | B32: 东镜南路工程一期 | C32: 续建 | D32: 长1.1公里，宽6米 | E32: 2016 - 2019 | F32: 780 | H32: 780 | L32: 77 | M32: 20 | N32: 280 | P32: 280 | T32: 224 | U32: 道路建设 | V32: 姚汉钟 | W32: 交通局 | X32: 吴勐 36899665 | Y32: 吴文青 36915272
A33: 21 | B33: 滨湖路（新雅桥-雅瑶桥）交通黑点改造 | C33: 续建 | D33: 全长约0.98公里，宽20米 | E33: 2015 - 2019 | F33: 768 | H33: 768 | L33: 107 | N33: 308 | P33: 308 | T33: 246 | U33: 道路建设 | V33: 姚汉钟 | W33: 交通局 | X33: 吴勐 36899665 | Y33: 赖学全 86885506
A34: 22 | B34: G106加建沥青路面和排水箱涵工程（花都大道-山前大道） | C34: 新开工 | D34: 长7.3公里，6车道加铺沥青，整治排水设施和绿化工程 | E34: 2018 - 2020 | F34: 25010 （包含征地拆迁费约6152） | G34: 9145 | H34: 15865 | L34: 1000 | N34: 11520 | O34: 8000 | P34: 3520 | T34: 2816 | U34: 道路建设及征地拆迁工程 | V34: 姚汉钟 | W34: 交通局 | X34: 吴勐 36899665 | Y34: 郭玉柱 36807776 | Z34: 区重点项目 市投资转移支付
A35: 23 | B35: 儿童公园周边道路工程（平石路、瑞莲路） | C35: 新开工 | D35: 由平石路及瑞莲路两段组成，其中平石路全长1.436公里，红线宽40米；瑞莲路长1.127公里，红线宽30米 | E35: 2018 - 2020 | F35: 22000（不含征拆费用） | H35: 22000 | L35: 317 | M35: 220 | N35: 3750 | P35: 3750 | T35: 3000 | U35: 道路建设 | V35: 姚汉钟 | W35: 交通局 | X35: 吴勐 36899665 | Y35: 郭玉柱 36807776 | Z35: 区重点项目
A36: 24 | B36: G106加建沥青路面和排水箱涵工程（平步大道-龙口） | C36: 新开工 | D36: 长2.95公里，6车道加铺沥青，整治排水设施和绿化工程 | E36: 2018 - 2020 | F36: 18433 （包含征地拆迁费约7759） | G36: 5031 | H36: 11802 | I36: 1600 | L36: 1000 | N36: 9440 | O36: 4000 | P36: 3840 | Q36: 1600 | T36: 3072 | U36: 道路建设及征地拆迁工程 | V36: 姚汉钟 | W36: 交通局 | X36: 吴勐 36899665 | Y36: 郭玉柱 36807776 | Z36: 区重点项目 市投资转移支付
A37: 25 | B37: 广州市党员干部法纪教育基地专用路及配套设施工程 | C37: 新开工 | D37: 长2.3公里，宽20米 | E37: 2018 - 2020 | F37: =G37+H37 -> 13075 | G37: 12529 | H37: 546 | L37: 3200 | N37: 6300 | O37: 6000 | P37: 300 | T37: 300 | U37: 工程实施建设，完成道路主体工程施工 | V37: 姚汉钟 | W37: 交通局 | X37: 吴勐 36899665 | Y37: 郭玉柱 36807776 | Z37: 区重点项目 市投资转移支付
A38: 26 | B38: 花都区秀全中学新校区周边道路工程（东边路一期、东波路一期、南侧规划路） | C38: 新开工 | D38: 东边路一期长约1.21公里，规划宽度30米，南北走向，北起花卉大道，南至南侧规划路，东波路一期长约0.45公里，规划宽度20米，南北走向，北起北侧规划路，南至南侧规划路，南侧规划路长约0.59公里，规划宽度20米，东西走向，西起东边路，东至东波路 | E38: 2018 - 2020 | F38: 8967（不含征地拆迁费） | H38: 8967 | L38: 682 | N38: 3000 | P38: 3000 | T38: 2400 | U38: 道路建设 | V38: 姚汉钟 | W38: 交通局 | X38: 吴勐 36899665 | Y38: 郭玉柱 36807776
A39: 27 | B39: 花都区山前旅游大道生态景观林带建设工程 | C39: 新开工 | D39: 全长57公里 | E39: 2018 - 2019 | F39: 8000 | H39: 8000 | L39: 390 | M39: 390 | N39: 4960 | P39: 4960 | T39: 3968 | U39: 开展施工 | V39: 姚汉钟 | W39: 交通局 | X39: 吴勐 36899665 | Y39: 郭玉柱 36807776 | Z39: 区重点项目
A40: 28 | B40: 宝华路（天贵路-曙光路）工程 | C40: 新开工 | D40: 长0.45公里，宽40米 | E40: 2018 - 2020 | F40: 7100（含征地拆迁费4100） | H40: 7100 | L40: 180 | N40: 100 | P40: 100 | T40: 100 | U40: 道路建设 | V40: 姚汉钟 | W40: 交通局 | X40: 吴勐 36899665 | Y40: 赖学全 86885506
A41: 29 | B41: 阳光北路(山前大道-金狮大道）改造工程 | C41: 新开工 | D41: 对长1.35公里，宽40米的阳光北路进行改造，打通阳光北路连接山前大道约0.85公里的断头路段，并对整条阳光北路（山前大道至金狮大道1.35公里）全面铺设沥青 | E41: 2018 - 2020 | F41: 2840 | H41: 2840 | N41: 1120 | P41: 1120 | T41: 896 | U41: 道路建设 | V41: 姚汉钟 | W41: 狮岭镇 | X41: 黎汝坚 86846521 | Y41: 黄金发13602230038
A42: 30 | B42: 茶碑路（天马河以西路段）道路工程 | C42: 新开工 | D42: 全长0.47公里，宽30米 | E42: 2018 - 2019 | F42: 2800 | H42: 2800 | L42: 153 | N42: 973 | P42: 973 | T42: 778 | U42: 道路建设 | V42: 姚汉钟 | W42: 交通局 | X42: 吴勐 36899665 | Y42: 赖学全 86885506
A43: 31 | B43: 八骏酒家南侧道路改造工程 | C43: 新开工 | D43: 含东西向及南北向两段道路建设，其中南北向道路为三东大道-八骏酒家南侧现状道路，终点位于建设北路，该段为改造道路长约0.29公里，宽20米 | E43: 2018 - 2019 | F43: 1950（包含征地拆迁费约1200） | H43: 1950 | L43: 542 | M43: 506 | N43: 400 | P43: 400 | T43: 320 | U43: 道路改造及征地拆迁工程 | V43: 姚汉钟 | W43: 交通局 | X43: 吴勐 36899665 | Y43: 赖学全 86885506
A44: 32 | B44: 花都区花山镇中通项目铜鼓路道路工程 | C44: 新开工 | D44: 铜鼓路全长约0.668公里，建设内容包括道路工程、交通工程、涵洞工程、给水工程、排水工程、照明工程、绿化工程等 | E44: 2018 - 2019 | F44: 1450 | H44: 1450 | N44: 900 | P44: 900 | T44: 720 | U44: 道路建设 | V44: 姚汉钟 | W44: 花山镇 | X44: 李慧容 13500011773 | Y44: 张文婷 15820262964
A45: 33 | B45: 永安东路（菜鸟段） | C45: 新开工 | D45: 长约0.28公里，规划红线宽30米 | E45: 2018 - 2019 | F45: 996 | H45: 996 | L45: 30 | N45: 300 | P45: 300 | T45: 240 | U45: 道路建设 | V45: 姚汉钟 | W45: 交通局 | X45: 吴勐 36899665 | Y45: 郭玉柱 36807776
A46: 34 | B46: 骏辉雅苑北侧道路工程 | C46: 新开工 | D46: 长约0.35公里，宽20米 | E46: 2018 - 2019 | F46: 920（不含征地拆迁费约） | H46: 920 | L46: 70 | M46: 69 | N46: 664 | P46: 664 | T46: 531 | U46: 道路建设 | V46: 姚汉钟 | W46: 交通局 | X46: 吴勐 36899665 | Y46: 赖学全 86885506
A47: 35 | B47: 地铁九号线沿线城市道路交通优化工程人行通道出入口顶棚工程 | C47: 新开工 | D47: 4个车行隧道和3个人行通道，其中3个人行通道均设有4个出入口，共16个人行道出入口的16个顶棚 | E47: 2018 - 2019 | F47: 877 | H47: 877 | N47: 491 | P47: 491 | T47: 393 | U47: 施工建设 | V47: 姚汉钟 | W47: 交通局 | X47: 吴勐 36899665 | Y47: 郭玉柱 36807776
A48: 36 | B48: 花都区花山镇中通项目规划一路道路工程 | C48: 新开工 | D48: 规划一路全长约0.222公里，建设内容包括道路工程、交通工程、涵洞工程、给水工程、排水工程、照明工程、绿化工程等 | E48: 2018 - 2019 | F48: 796 | H48: 796 | N48: 400 | P48: 400 | T48: 320 | U48: 道路建设 | V48: 姚汉钟 | W48: 花山镇 | X48: 李慧容 13500011773 | Y48: 张文婷 15820262964
A49: 37 | B49: 花都区花山镇中通项目规划二路道路工程 | C49: 新开工 | D49: 规划二路全长约0.342公里，建设内容包括道路工程、交通工程、涵洞工程、给水工程、排水工程、照明工程、绿化工程 | E49: 2018 - 2019 | F49: 737 | H49: 737 | N49: 400 | P49: 400 | T49: 320 | U49: 道路建设 | V49: 姚汉钟 | W49: 花山镇 | X49: 李慧容 13500011773 | Y49: 张文婷 15820262964
A50: 38 | B50: 平步大道西延线 | C50: 前期 | D50: 全长7.377公里，宽45-60米 | E50: 2019 - 2022 | F50: 400000（含征地拆迁费约180000） | G50: 400000 | L50: 20 | N50: 15000 | O50: 15000 | U50: 前期工作、征地拆迁及动工阶段 | V50: 姚汉钟 | W50: 交通局 | X50: 吴勐 36899665 | Y50: 郭玉柱 36807776 | Z50: 区重点项目 市投资转移支付
A51: 39 | B51: 新106国道（花都大道-迎宾大道）工程 | C51: 前期 | D51: 北起花都大道，南接迎宾大道，道路长7.81公里，红线宽60米；双向10车道 | E51: 2019 - 2020 | F51: 383836 | G51: 383836 | L51: 50 | N51: 25000 | O51: 25000 | U51: 前期工作、道路建设 | V51: 姚汉钟 | W51: 交通局 | X51: 吴勐 36899665 | Y51: 郭玉柱 36807776 | Z51: 区重点项目 市投资转移支付
A52: 40 | B52: 望亭路-商业大道跨铁路立交工程 | C52: 前期 | D52: 城市主干道，双向6车道，全长1.2公里 | E52: 2019 - 2020 | F52: 220430 | H52: 220430 | N52: 56419 | P52: 56419 | T52: 56419 | U52: 桥梁基础部分及主体结构 | V52: 姚汉钟 | W52: 交通局 | X52: 刘德康13609600918 | Y52: 麦锦锋18825026898 | Z52: 区重点项目
A53: 41 | B53: 机场第二高速至T2航站楼连接线工程 | C53: 前期 | D53: 东起机场第二高速机场北收费站，西至空港大道，红线宽度50米，双向6车道 | E53: 2019 - 2020 | F53: 189300 | G53: 189300 | L53: 50 | N53: 600 | O53: 600 | U53: 前期工作、道路建设 | V53: 姚汉钟 | W53: 交通局 | X53: 吴勐 36899665 | Y53: 郭玉柱 36807776 | Z53: 区重点项目 市投资转移支付
A54: 42 | B54: 炭步大道（四角围-西二环）快速化改造工程 | C54: 前期 | D54: 长约5.5公里，红线宽60米 | E54: 2019 - 2020 | F54: 170720 | G54: 85360 | H54: 85360 | N54: 1750 | O54: 875 | P54: 875 | T54: 700 | U54: 开展项目建议书，可行性研究报告编制工作 | V54: 姚汉钟 | W54: 交通局 | X54: 吴勐 36899665 | Y54: 郭玉柱 36807776 | Z54: 区重点项目 争取市区共资
A55: 43 | B55: 车城大道改造工程 | C55: 前期 | D55: 全长约3.67公里，红线宽度60米，增加两座跨线桥及路面重铺改造 | E55: 2019 - 2020 | F55: 120000 | G55: 120000 | N55: 500 | O55: 500 | U55: 前期工作，道路改造 | V55: 姚汉钟 | W55: 交通局 | X55: 吴勐 36899665 | Y55: 郭玉柱 36807776 | Z55: 区重点项目 市投资转移支付
A56: 44 | B56: 凤凰北路（迎宾大道-平步大道）快捷化改造工程 | C56: 前期 | D56: 全长约3.264公里，规划红线宽度为50米，其中高架桥长2.971公里 | E56: 2019 - 2022 | F56: 79655 | H56: 79655 | N56: 50 | P56: 50 | T56: 50 | U56: 前期工作 | V56: 姚汉钟 | W56: 交通局 | X56: 吴勐 36899665 | Y56: 郭玉柱 36807776
A57: 45 | B57: 莲山路（平步大道-商业大道）工程 | C57: 前期 | D57: 长约3.386公里，宽60米 | E57: 2019 - 2021 | F57: 74808 | H57: 74808 | L57: 200 | M57: 150 | N57: 9200 | P57: 9200 | T57: 7360 | U57: 完成施工招标，开展施工前期准备工作，路基施工及征地拆迁工作 | V57: 姚汉钟 | W57: 交通局 | X57: 吴勐 36899665 | Y57: 郭玉柱 36807776 | Z57: 区重点项目
A58: 46 | B58: 省道S118（黄村-大涡段）拓宽改造工程 | C58: 前期 | D58: 全长约7.83公里，双向6车道，路基宽度33.5米 | E58: 2019 - 2022 | F58: 100000 | H58: 100000 | N58: 800 | P58: 800 | T58: 640 | U58: 前期工作、征地拆迁及项目施工 | V58: 姚汉钟 | W58: 交通局 | X58: 吴勐 36899665 | Y58: 郭玉柱 36807776 | Z58: 区重点项目
A59: 47 | B59: 和顺立交匝道工程 | C59: 前期 | D59: 新建五条匝道，总长约3公里 | E59: 2019 - 2022 | F59: 56500 | H59: 56500 | N59: 100 | P59: 100 | T59: 100 | U59: 前期工作 | V59: 姚汉钟 | W59: 交通局 | X59: 吴勐 36899665 | Y59: 郭玉柱 36807776 | Z59: 区重点项目
A60: 48 | B60: 三东大道西延线工程 | C60: 前期 | D60: 长约2.89公里，宽20米 | E60: 2019 - 2021 | F60: 36500 | H60: 36500 | N60: 50 | P60: 50 | T60: 40 | U60: 前期工作 | V60: 姚汉钟 | W60: 交通局 | X60: 吴勐 36899665 | Y60: 郭玉柱 36807776
A61: 49 | B61: 港口大道（S118-红棉大道）工程 | C61: 前期 | D61: 长约3.25公里，红线宽30-50米 | E61: 2019 - 2021 | F61: 35000 | H61: 35000 | N61: 50 | P61: 50 | T61: 40 | U61: 前期工作 | V61: 姚汉钟 | W61: 交通局 | X61: 吴勐 36899665 | Y61: 郭玉柱 36807776
A62: 50 | B62: 新南大道（荔红南路从工业大道-车城大道）工程 | C62: 前期 | D62: 长约1.9公里，宽40米 | E62: 2019 - 2021 | F62: 33000 （含征地拆迁费8793） | H62: 33000 | L62: 400 | M62: 114 | N62: 11000 | P62: 11000 | T62: 8800 | U62: 道路建设及征地拆迁工作 | V62: 姚汉钟 | W62: 交通局 | X62: 吴勐 36899665 | Y62: 郭玉柱 36807776 | Z62: 区重点项目
A63: 51 | B63: S114线赤坭段改造工程 | C63: 前期 | D63: 长14.7公里，宽24米 | E63: 2019 - 2022 | F63: 30000 | H63: 30000 | N63: 50 | P63: 50 | T63: 40 | U63: 前期工作 | V63: 姚汉钟 | W63: 交通局 | X63: 吴勐 36899665 | Y63: 郭玉柱 36807776
A64: 52 | B64: 白云机场扩建工程噪音区治理项目花都保良北融资区市政配套工程 | C64: 前期 | D64: 建设内容包括保良北融资区土地收储范围内的市政道路及配套工程； 建设规模：71068平方米道路（长2.828公里、宽20-30米）及配套工程 | E64: 2019 - 2020 | F64: 19565 | G64: 19565 | N64: 650 | O64: 650 | U64: 完成征地拆迁、立项、环评、勘察设计和方案审查 | V64: 姚汉钟 | W64: 区空港委 | X64: 张绍炳 36802450 13600019921 | Y64: 卢宜浩 36802450 13602244884
A65: 53 | B65: Y838道路改造完善工程 | C65: 前期 | D65: 该项目位于花都区芙蓉省级旅游度假区，南至山前旅游大道，北与规划道路相连通，长2.2公里，现状道路宽度为6米，计划拓宽至24米宽；新建连接线长0.76公里，与芙滨路相连接，道路宽度为7米宽，双向2车道 | E65: 2019 - 2021 | F65: 17065 | H65: 17065 | L65: 5 | N65: 30 | P65: 30 | T65: 24 | U65: 前期工作 | V65: 姚汉钟 | W65: 交通局 | X65: 吴勐 36899665 | Y65: 郭玉柱 36807776
A66: 54 | B66: Y772道路改造完善工程 | C66: 前期 | D66: 该项目位于花都区芙蓉省级旅游度假区，南至山前旅游大道，北至永聚贤山庄，道路长5.9公里 | E66: 2019 - 2021 | F66: 16442 | H66: 16442 | L66: 20 | N66: 30 | P66: 30 | T66: 24 | U66: 前期工作 | V66: 姚汉钟 | W66: 交通局 | X66: 吴勐 36899665 | Y66: 郭玉柱 36807776
A67: 55 | B67: 秀全中学新校区东边路（田螺岭—南二经济社果园）工程（二期） | C67: 前期 | D67: 长约2.335公里，现有路基宽度6.5米上扩宽为30米 | E67: 2019 - 2021 | F67: 16100 | H67: 16100 | N67: 500 | P67: 500 | T67: 400 | U67: 前期工作 | V67: 姚汉钟 | W67: 交通局 | X67: 吴勐 36899665 | Y67: 郭玉柱 36807776
A68: 56 | B68: 学府路（雅居乐中学-平步大道)工程 | C68: 前期 | D68: 长约0.85公里，宽26米 | E68: 2019 - 2021 | F68: 16000（包含征地拆迁费约10000万元） | H68: 16000 | N68: 25 | P68: 25 | T68: 16 | U68: 前期工作 | V68: 姚汉钟 | W68: 交通局 | X68: 吴勐 36899665 | Y68: 郭玉柱 36807776
A69: 57 | B69: 太石路（花都区边界-山前旅游大道）工程 | C69: 前期 | D69: 全长约6公里，道路红线宽度50米 | E69: 2019 - 2022 | F69: 15000 | H69: 15000 | N69: 30 | P69: 30 | T69: 24 | U69: 前期工作 | V69: 姚汉钟 | W69: 交通局 | X69: 吴勐 36899665 | Y69: 郭玉柱 36807776
A70: 58 | B70: 平石路（莲山路-G106国道）工程 | C70: 前期 | D70: 长1.58公里，宽40米，含全路段D1800污水主管建设 | E70: 2019 - 2021 | F70: 14136 | H70: 14136 | L70: 200 | N70: 200 | P70: 200 | T70: 160 | U70: 前期工作 | V70: 姚汉钟 | W70: 交通局 | X70: 吴勐 36899665 | Y70: 郭玉柱 36807776
A71: 59 | B71: 花都区机场高新科技产业基地道路工程(高信三路、先科路、先科三路、先科四路、高信纵路） | C71: 前期 | D71: 道路总长5.052公里、宽15-20米 | E71: 2019 - 2020 | F71: 12204 | H71: 12204 | N71: 120 | P71: 120 | T71: 96 | U71: 完成规划报建前期工作 | V71: 姚汉钟 | W71: 区空港委 | X71: 张绍炳 36802450 | Y71: 卢宜浩 36802450
A72: 60 | B72: 乐同村安置区进场道路（迎宾大道-赤米经济社） | C72: 前期 | D72: 全长约1.2公里，宽20米 | E72: 2019 - 2020 | F72: 10350 | K72: 10350 | N72: 450 | S72: 450 | U72: 前期工作 | V72: 姚汉钟 | W72: 交通局 | X72: 吴勐 36899665 | Y72: 郭玉柱 36807776
A73: 61 | B73: 狮清路砼路面加铺工程 | C73: 前期 | D73: 全长2.35公里，宽约15米 | E73: 2019 - 2021 | F73: 9800 | H73: 9800 | N73: 400 | P73: 400 | T73: 320 | U73: 前期工作 | V73: 姚汉钟 | W73: 交通局 | X73: 吴勐 36899665 | Y73: 郭玉柱 36807776
A74: 62 | B74: 东风日产周边三座桥梁建设工程 | C74: 前期 | D74: 本项目含人行天桥两座和一座河涌桥，其中1号门人行天桥长度70米，桥面净宽5米； 技术中心南门人行天桥长度74米，桥面净宽5米；跨红棉河涌桥长度20米，宽度12米 | E74: 2019 - 2021 | F74: 8000 | H74: 8000 | L74: 50 | N74: 4000 | P74: 4000 | T74: 3200 | U74: 前期工作及桥梁建设 | V74: 姚汉钟 | W74: 交通局 | X74: 吴勐 36899665 | Y74: 郭玉柱 36807776 | Z74: 区重点项目
A75: 63 | B75: 迎宾大道人行天桥工程（原合和新城人行天桥工程) | C75: 前期 | D75: 分别于百寿路口、清莲路口、万和北路（合和新城）路口设置三座人行天桥，并适当优化改造这三个路口的交通组织 | E75: 2019 - 2021 | F75: 8900 | H75: 8900 | N75: 800 | P75: 800 | T75: 640 | U75: 前期工作及桥梁建设 | V75: 姚汉钟 | W75: 交通局 | X75: 吴勐 36899665 | Y75: 郭玉柱 36807776 | Z75: 区重点项目
A76: 64 | B76: 花都区机场高新科技产业基地土方平整工程 | C76: 前期 | D76: 80万立方米土方平整 | E76: 2019 - 2020 | F76: 6720 | H76: 6720 | N76: 100 | P76: 100 | T76: 80 | U76: 完成规划报建前期工作 | V76: 蔡建 | W76: 区空港委 | X76: 张绍炳 36802450 | Y76: 卢宜浩 36802450
A77: 65 | B77: 广雅中学周边道路工程 | C77: 前期 | D77: 长约1.35公里，宽30米 | E77: 2019 - 2021 | F77: 6700 | H77: 6700 | N77: 800 | P77: 800 | T77: 640 | U77: 前期工作，争取施工建设 | V77: 姚汉钟 | W77: 交通局 | X77: 吴勐 36899665 | Y77: 郭玉柱 36807776
A78: 66 | B78: 岭西大道工程（新赤公路-民航学院） | C78: 前期 | D78: 长约0.95公里，宽15米 | E78: 2019 - 2021 | F78: 6700 | H78: 6700 | L78: 50 | N78: 50 | P78: 50 | T78: 40 | U78: 前期工作 | V78: 姚汉钟 | W78: 交通局 | X78: 吴勐 36899665 | Y78: 郭玉柱 36807776
A79: 67 | B79: 风神大道（农新桥-风神公社）升级改造工程 | C79: 前期 | D79: 路线总长3.622公里 | E79: 2019 - 2022 | F79: 6400 | H79: 6400 | N79: 4000 | P79: 4000 | T79: 3200 | U79: 前期工作及改造建设 | V79: 姚汉钟 | W79: 交通局 | X79: 吴勐 36899665 | Y79: 郭玉柱 36807776 | Z79: 区重点项目
A80: 68 | B80: 菜鸟项目西侧支路三 | C80: 前期 | D80: 长约1.7公里，规划红线宽30米 | E80: 2019 - 2020 | F80: 5800 | H80: 5800 | L80: 10 | N80: 60 | P80: 60 | T80: 48 | U80: 前期工作 | V80: 姚汉钟 | W80: 交通局 | X80: 吴勐 36899665 | Y80: 郭玉柱 36807776
A81: 69 | B81: 哥弟龙门苑项目周边道路工程 | C81: 前期 | D81: 包括杜英一街（茶梅街—景天路）工程，长240米宽12米；杜英三街（三东大道—景天路）工程，长590米，宽20米，含20米宽桥梁一座；茶梅街（天贵路-杜英三街）工程，长300米，宽20米；翠菊街（杜英三街—曙光路）工程，长380米，宽20米，含20米宽桥梁两座 | E81: 2019 - 2020 | F81: 8000 | H81: 8000 | N81: 150 | P81: 150 | T81: 150 | U81: 前期工作 | V81: 姚汉钟 | W81: 交通局 | X81: 吴勐 36899665 | Y81: 郭玉柱 36807776
A82: 70 | B82: 凤华花园东侧道路（松园路-宝华路）工程 | C82: 前期 | D82: 全长约0.8公里，宽20米 | E82: 2019 - 2020 | F82: 3360 | H82: 3360 | L82: 10 | N82: 60 | P82: 60 | T82: 48 | U82: 前期工作、道路改造 | V82: 姚汉钟 | W82: 交通局 | X82: 吴勐 36899665 | Y82: 郭玉柱 36807776
A83: 71 | B83: 培正大道改造工程（K3+840-K11+048） | C83: 前期 | D83: 长7.2公里，路面宽12米，双向2车道 | E83: 2019 - 2021 | F83: 3000 | H83: 3000 | N83: 200 | P83: 200 | T83: 160 | U83: 前期工作 | V83: 姚汉钟 | W83: 交通局 | X83: 吴勐 36899665 | Y83: 郭玉柱 36807776
A84: 72 | B84: 荷花路（三东大道-景天路）工程 | C84: 前期 | D84: 长约0.6公里，宽20米 | E84: 2019 - 2020 | F84: 2700 | H84: 2700 | N84: 20 | P84: 20 | T84: 16 | U84: 前期工作，道路建设 | V84: 姚汉钟 | W84: 交通局 | X84: 吴勐 36899665 | Y84: 郭玉柱 36807776
A85: 73 | B85: 狮岭镇宝峰北路升级改造工程 | C85: 前期 | D85: 该道路是连接山前旅游大道与金狮大道的城区市政道路，现长1.2公里、宽约15米，工程主要内容：将其改造为双向六车道，中间设2米绿化带，维修破损路面，铺设人行道砖及沥青路面，并改造、排水及绿化、标志标线等设施 | E85: 2019 - 2020 | F85: 2000 | G85: 100 | H85: 500 | I85: 1400 | N85: 200 | O85: 100 | P85: 100 | T85: 80 | U85: 前期工作 | V85: 姚汉钟 | W85: 狮岭镇 | X85: 黎汝坚 86846521 | Y85: 黄金发13602230038
A86: 74 | B86: 凤华路（规划支路-茶园南路）工程 | C86: 前期 | D86: 全长约0.378公里，宽20米 | E86: 2019 - 2020 | F86: 2000 | H86: 2000 | L86: 5 | N86: 50 | P86: 50 | T86: 40 | U86: 前期工作，道路建设 | V86: 姚汉钟 | W86: 交通局 | X86: 吴勐 36899665 | Y86: 郭玉柱 36807776
A87: 75 | B87: 公安技术用房周边道路工程 | C87: 前期 | D87: 长约0.7公里，宽15米 | E87: 2019 - 2021 | F87: 2000 | H87: 2000 | N87: 250 | P87: 250 | T87: 200 | U87: 前期工作 | V87: 姚汉钟 | W87: 交通局 | X87: 吴勐 36899665 | Y87: 郭玉柱 36807776
A88: 76 | B88: 拥军路（石缘二路—新赤公路）工程 | C88: 前期 | D88: 长约0.7公里，宽8.5米 | E88: 2019 - 2021 | F88: 1800 | H88: 1800 | L88: 50 | N88: 800 | P88: 800 | T88: 640 | U88: 前期工作 | V88: 姚汉钟 | W88: 交通局 | X88: 吴勐 36899665 | Y88: 郭玉柱 36807776
A89: 77 | B89: 花都区秀全中学新校区北侧道路工程（二期） | C89: 前期 | D89: 长0.594公里，现有路基宽度20米上扩宽为40米 | E89: 2019 - 2021 | F89: 1400 | H89: 1400 | N89: 500 | P89: 500 | T89: 400 | U89: 前期工作 | V89: 姚汉钟 | W89: 交通局 | X89: 吴勐 36899665 | Y89: 郭玉柱 36807776
A90: 78 | B90: 梯面敬老院南侧道路（敬老院-G106国道）工程 | C90: 前期 | D90: 长约0.3公里，宽7米 | E90: 2019 - 2020 | F90: 500（不含征拆费用） | H90: 500 | L90: 26 | N90: 300 | P90: 300 | T90: 240 | U90: 前期、新开工 | V90: 姚汉钟 | W90: 交通局 | X90: 吴勐 36899665 | Y90: 郭玉柱 36807776
A91: （三）中轴线周边道路工程（22个） | F91: =SUM(G91:K91) -> 223383 | I91: =SUM(I92:I113) -> 223383 | L91: 13597 | M91: 4986 | N91: 100292 | P91: 100292 | T91: 80583
A92: 79 | B92: 永富路（天贵路-莲山路）工程 | C92: 续建 | D92: 全长2.34公里，宽30米 | E92: 2017 - 2019 | F92: 23634 | I92: 23634 | L92: 1100 | M92: 2187 | N92: 16190 | P92: 16190 | T92: 12952 | U92: 道路建设 | V92: 姚汉钟 | W92: 交通局 | X92: 吴勐 36899665 | Y92: 赖学全 86885506 | Z92: 区重点项目
A93: 80 | B93: 平石路（建设北路-凤凰北路）工程 | C93: 续建 | D93: 全长2.182公里，宽40米 | E93: 2017 - 2019 | F93: 18744 | I93: 18744 | L93: 600 | M93: 765 | N93: 17188 | P93: 17188 | T93: 13750 | U93: 道路建设 | V93: 姚汉钟 | W93: 交通局 | X93: 吴勐 36899665 | Y93: 赖学全 86885506 | Z93: 区重点项目
A94: 81 | B94: 公益路（三东大道-平步大道）工程 | C94: 续建 | D94: 全长1.68公里，宽40米 | E94: 2017 - 2019 | F94: 17464 | I94: 17464 | L94: 500 | M94: 350 | N94: 13750 | P94: 13750 | T94: 11000 | U94: 道路建设 | V94: 姚汉钟 | W94: 交通局 | X94: 吴勐 36899665 | Y94: 赖学全 86885506 | Z94: 区重点项目
A95: 82 | B95: 凤凰北路（平步大道-永安路）工程 | C95: 续建 | D95: 长1.277公里，宽50米 | E95: 2014 - 2019 | F95: 14753 | I95: 14753 | L95: 5800 | M95: 214 | N95: 2500 | P95: 2500 | T95: 2000 | U95: 道路建设 | V95: 姚汉钟 | W95: 交通局 | X95: 吴勐 36899665 | Y95: 赖学全 86885506 | Z95: 区重点项目
A96: 83 | B96: 天贵北路（平步大道-永安路）工程 | C96: 续建 | D96: 全长1.34公里 | E96: 2017 - 2019 | F96: 14162 | I96: 14162 | L96: 877 | M96: 446 | N96: 12500 | P96: 12500 | T96: 10000 | U96: 道路建设 | V96: 姚汉钟 | W96: 交通局 | X96: 吴勐 36899665 | Y96: 赖学全 86885506 | Z96: 区重点项目
A97: 84 | B97: 玫瑰路（三东大道-紫娇西街）工程 | C97: 续建 | D97: 全1.34公里，宽20米 | E97: 2015 - 2019 | F97: 5525 | I97: 5525 | L97: 750 | M97: 124 | N97: 2125 | P97: 2125 | T97: 1700 | U97: 道路建设 | V97: 姚汉钟 | W97: 交通局 | X97: 吴勐 36899665 | Y97: 赖学全 86885506
A98: 85 | B98: 永安路（建设北路-莲山路）工程 | C98: 新开工 | D98: 全长3.261公里，宽30米 | E98: 2018 - 2020 | F98: 20680 | I98: 20680 | L98: 266 | N98: 400 | P98: 400 | T98: 400 | U98: 前期工作，道路建设 | V98: 姚汉钟 | W98: 交通局 | X98: 吴勐 36899665 | Y98: 郭玉柱 36807776
A99: 86 | B99: 景天路（建设北路-曙光路）工程 | C99: 新开工 | D99: 全长1.818公里，宽30米 | E99: 2018 - 2020 | F99: 11000 | I99: 11000 | L99: 312 | N99: 6250 | P99: 6250 | T99: 5000 | U99: 道路建设 | V99: 姚汉钟 | W99: 交通局 | X99: 吴勐 36899665 | Y99: 郭玉柱 36807776 | Z99: 区重点项目
A100: 87 | B100: 莲山路（平步大道-永安路）工程 | C100: 新开工 | D100: 全长1.214公里，宽50米 | E100: 2018 - 2020 | F100: 11000 | I100: 11000 | L100: 168 | N100: 3375 | P100: 3375 | T100: 2700 | U100: 前期工作，道路建设 | V100: 姚汉钟 | W100: 交通局 | X100: 吴勐 36899665 | Y100: 郭玉柱 36807776 | Z100: 区重点项目
A101: 88 | B101: 曙光路（三东大道-平步大道）工程 | C101: 新开工 | D101: 长1.577公里，宽40米 | E101: 2018 - 2020 | F101: 10487 | I101: 10487 | L101: 1000 | M101: 400 | N101: 11844 | P101: 11844 | T101: 9475 | U101: 开展施工 | V101: 姚汉钟 | W101: 交通局 | X101: 吴勐 36899665 | Y101: 郭玉柱 36807776 | Z101: 区重点项目
A102: 89 | B102: 黄槐路（平步大道-永安路）工程 | C102: 新开工 | D102: 长1.1公里，宽30米 | E102: 2018 - 2020 | F102: 8643 | I102: 8643 | L102: 400 | M102: 200 | N102: 6250 | P102: 6250 | T102: 5000 | U102: 施工建设 | V102: 姚汉钟 | W102: 交通局 | X102: 吴勐 36899665 | Y102: 郭玉柱 36807776
A103: 90 | B103: 茶园北路（三东大道-规划支路）工程 | C103: 新开工 | D103: 全长1.312公里，宽30米 | E103: 2018 - 2020 | F103: 7900 | I103: 7900 | L103: 350 | M103: 280 | N103: 3700 | P103: 3700 | T103: 2960 | U103: 道路建设 | V103: 姚汉钟 | W103: 交通局 | X103: 吴勐 36899665 | Y103: 赖学全 86885506
A104: 91 | B104: 石岗安置区周边道路工程 | C104: 新开工 | D104: 其中：杜英一街（景天路—平石路）全长571米，道路宽度15米，双向2车道；杜英三街（景天路—平石路）全长548米，道路宽度20米；葱兰东街全长457米，道路宽度20米；茶梅街（茶园北路—玫瑰路）全长323米，道路宽度20米 | E104: 2018 - 2020 | F104: 7046（不含征地拆迁费） | I104: 7046 | L104: 446 | N104: 310 | P104: 310 | T104: 310 | U104: 前期工作、道路建设 | V104: 姚汉钟 | W104: 交通局 | X104: 吴勐 36899665 | Y104: 郭玉柱 36807776
A105: 92 | B105: 百寿路（永安路-百寿南路）工程 | C105: 新开工 | D105: 全长约0.25公里，宽40米 | E105: 2018 - 2019 | F105: 3750 | I105: 3750 | L105: 120 | M105: 20 | N105: 2870 | P105: 2870 | T105: 2296 | U105: 道路建设 | V105: 姚汉钟 | W105: 交通局 | X105: 吴勐 36899665 | Y105: 郭玉柱 36807776
A106: 93 | B106: 罗仙安置区东侧道路（罗仙路—永富路）工程 | C106: 新开工 | D106: 全长0.371公里，规划道路宽度20米 | E106: 2018 - 2019 | F106: 1565（不含征地拆迁费） | I106: 1565 | L106: 105 | N106: 70 | P106: 70 | T106: 70 | U106: 前期工作、道路建设 | V106: 姚汉钟 | W106: 交通局 | X106: 吴勐 36899665 | Y106: 郭玉柱 36807776
A107: 94 | B107: 丝兰街（田美河-曙光路）工程 | C107: 新开工 | D107: 全长约0.19公里，红线宽度为15米 | E107: 2018 - 2019 | F107: 585 | I107: 585 | N107: 350 | P107: 350 | T107: 350 | U107: 前期工作，道路建设 | V107: 姚汉钟 | W107: 交通局 | X107: 吴勐 36899665 | Y107: 郭玉柱 36807776
A108: 95 | B108: 蓝楹街（杜鹃二街-黄槐路）工程 | C108: 前期 | D108: 长3.213公里，宽20米 | E108: 2019 - 2021 | F108: 15545 | I108: 15545 | L108: 753 | N108: 300 | P108: 300 | T108: 300 | U108: 道路建设 | V108: 姚汉钟 | W108: 交通局 | X108: 吴勐 36899665 | Y108: 郭玉柱 36807776
A109: 96 | B109: 三东大道（玫瑰路～规划支路）隧道工程（三东大道连廊工程） | C109: 前期 | D109: 人行过街天桥，路面下沉3米 | E109: 2019 - 2022 | F109: 13000 | I109: 13000 | L109: 50 | N109: 200 | P109: 200 | T109: 200 | U109: 前期工作 | V109: 姚汉钟 | W109: 交通局 | X109: 吴勐 36899665 | Y109: 郭玉柱 36807776
A110: 97 | B110: 景天东路工程（曙光路-铁山河） | C110: 前期 | D110: 长约2.2公里，宽30米 | E110: 2019 - 2021 | F110: 10500 | I110: 10500 | N110: 30 | P110: 30 | T110: 30 | U110: 前期工作 | V110: 姚汉钟 | W110: 交通局 | X110: 吴勐 36899665 | Y110: 郭玉柱 36807776
A111: 98 | B111: 杜英二街（平步大道-平石路）工程 | C111: 前期 | D111: 长约0.45公里，道路红线宽30米 | E111: 2019 - 2021 | F111: 3500 | I111: 3500 | N111: 30 | P111: 30 | T111: 30 | U111: 前期工作 | V111: 姚汉钟 | W111: 交通局 | X111: 吴勐 36899665 | Y111: 郭玉柱 36807776
A112: 99 | B112: 葱兰西街（建设北路-公益路）工程 | C112: 前期 | D112: 长约0.7公里，宽20米 | E112: 2019 - 2021 | F112: 2200 | I112: 2200 | N112: 30 | P112: 30 | T112: 30 | U112: 前期工作 | V112: 姚汉钟 | W112: 交通局 | X112: 吴勐 36899665 | Y112: 郭玉柱 36807776
A113: 100 | B113: 紫娇西街（建设北路-公益路）工程 | C113: 前期 | D113: 长约0.54公里，宽20米 | E113: 2019 - 2021 | F113: 1700 | I113: 1700 | N113: 30 | P113: 30 | T113: 30 | U113: 前期工作 | V113: 姚汉钟 | W113: 交通局 | X113: 吴勐 36899665 | Y113: 郭玉柱 36807776
A114: （四）汽车产业基地基础设施（7个） | F114: =SUM(F115:F121) -> 50628 | I114: =SUM(I115:I121) -> 50628 | L114: =SUM(L115:L121) -> 12300 | N114: =SUM(N115:N121) -> 25655 | P114: =SUM(P115:P121) -> 25655 | T114: =SUM(T115:T121) -> 20718
A115: 101 | B115: 新步大道建设工程（合进大道段） | C115: 竣工 | D115: 一标段道路长约1.275公里，宽50米；二标段道路长约1.435公里，宽50米；20米小桥1座 | E115: 2017 - 2018 | F115: 12000 | I115: 12000 | L115: 5000 | N115: 7000 | P115: 7000 | T115: 5600 | U115: 浇捣路面、绿化及交通工程施工 | V115: 罗干政 | W115: 汽车城 | X115: 江伟山36867102 | Y115: 曹伟豪 36867102 | Z115: 区重点项目
A116: 102 | B116: 沿江大道建设工程（二标） | C116: 竣工 | D116: 道路长约1.8公里，宽60米；25米小桥1座 | E116: 2017 - 2018 | F116: 7200 | I116: 7200 | L116: 1700 | N116: 5500 | P116: 5500 | T116: 4400 | U116: 浇捣路面、绿化及交通工程施工 | V116: 罗干政 | W116: 汽车城 | X116: 江伟山36867102 | Y116: 曹伟豪 36867102
A117: 103 | B117: 林益站至车城站电缆沟段、林益站至风神站110kV专线建设工程 | C117: 竣工 | D117: 林益站至车城战电缆沟段电缆埋管约6000米，林益站至风神站110kV专线单回路电缆埋管约5600米，电缆线路单线长度约6075米 | E117: 2017 - 2018 | F117: 6432 | I117: 6432 | L117: 2000 | N117: 4432 | P117: 4432 | T117: 3546 | U117: 铺设电缆，沟槽回填，恢复路面及绿化 | V117: 罗干政 | W117: 汽车城 | X117: 江伟山36867102 | Y117: 曹伟豪 36867102
A118: 104 | B118: 东风日产产能扩建项目纬五、纬六、纬七桥（共三桥）工程 | C118: 竣工 | D118: 纬五路桥跨度长约35米，宽约20米；纬六路桥跨度长约35米，宽约34米；纬七路桥跨度长约40米，宽约20米 | E118: 2018 | F118: 1465 | I118: 1465 | L118: 500 | N118: 965 | P118: 965 | T118: 965 | U118: 桥梁施工 | V118: 罗干政 | W118: 汽车城 | X118: 江伟山36867102 | Y118: 曹伟豪 36867102
A119: 105 | B119: 花都汽车产业基地SQ-C、SQ-D地块土方工程 | C119: 新开工 | D119: SQ-C项目填土面积约38.85万平方米，填土量约96.42万立方米。 SQ-D项目填土面积约45.17万平方米，填土量约99.13万立方米 | E119: 2018 - 2019 | F119: 12273 | I119: 12273 | L119: 2500 | N119: 2500 | P119: 2500 | T119: 2000 | U119: 填土施工 | V119: 罗干政 | W119: 汽车城 | X119: 江伟山36867102 | Y119: 曹伟豪 36867102 | Z119: 区重点项目
A120: 106 | B120: 花都汽车产业基地赤坭园区纬六路东延线工程 | C120: 新开工 | D120: 长约0.986公里，宽约40米 | E120: 2018 - 2019 | F120: 3958 | I120: 3958 | L120: 300 | N120: 2958 | P120: 2958 | T120: 2367 | U120: 路基填筑、浇捣路面、绿化及交通工程施工 | V120: 罗干政 | W120: 汽车城 | X120: 江伟山36867102 | Y120: 曹伟豪 36867102
A121: 107 | B121: 花都汽车产业基地合进大道排水渠建设工程 | C121: 前期 | D121: 渠长约2.908公里，宽约20米，深约3.5米，新建防洪排涝水闸一座 | E121: 2019 - 2020 | F121: 7300 | I121: 7300 | L121: 300 | N121: 2300 | P121: 2300 | T121: 1840 | U121: 浇捣路面、铺设供水管、绿化及交通工程施工 | V121: 罗干政 | W121: 汽车城 | X121: 江伟山36867102 | Y121: 曹伟豪 36867102
A122: 二、高端产业基地（5个） | F122: =SUM(F123:F127) -> 211604 | H122: =SUM(H123:H127) -> 69666 | J122: 141938 | L122: 5393 | M122: 5163 | N122: 25237 | P122: 18637 | R122: 6600 | T122: 16927
A123: 108 | B123: 填埋场沼气发电项目 | C123: 竣工 | D123: 建设3WM发电组 | E123: 2018 | F123: 3000 | J123: 3000 | N123: 3000 | R123: 3000 | U123: 建设及配备3MW沼气发电设施设备 | V123: 蒋福金 | W123: 城市管理局 | X123: 杨燕桓13902392590 | Y123: 向泽森13602239383
A124: 109 | B124: 中山大学花都产业科技研究院 | C124: 新开工 | D124: 用地面积2.78万平方米，总建筑面积8.5万平方米 | E124: 2018 - 2019 | F124: 43203 | H124: 43203 | L124: 3000 | M124: 3000 | N124: 8000 | P124: 8000 | T124: 6400 | U124: 施工建设 | V124: 罗干政 | W124: 科工信局 | X124: 罗满成 13600019055 | Y124: 罗云 13660033579
A125: 110 | B125: 佛吉亚（广州）汽车部件系统有限公司汽车零部件生产项目 | C125: 新开工 | D125: 新建厂房50000平方米，主要生产汽车座椅骨架（前排+后排），设计产能90万套/年 | E125: 2018 - 2019 | F125: 13587 | H125: 10287 | J125: 3300 | L125: 200 | N125: 13387 | P125: 10087 | R125: 3300 | T125: 10087 | U125: 土地招拍挂及厂房建设 | V125: 罗干政 | W125: 汽车城 | X125: 江伟山36867102 | Y125: 曹伟豪 36867102 | Z125: 区重点项目
A126: 111 | B126: 第五资源热力电厂二期工程 | C126: 新开工 | D126: 设计规模2000吨/天，设计选用3×750吨/天垃圾焚烧炉，年处理垃圾量为100×104吨 | E126: 2018 - 2020 | F126: 135638 | J126: 135638 | L126: 30 | N126: 300 | R126: 300 | U126: 环评、土建 | V126: 蒋福金 | W126: 城市管理局 | X126: 杨燕桓13902392590 | Y126: 向泽森13602239383
A127: 112 | B127: 花都空港经济发展有限公司临空产业孵化器项目（首期） | C127: 前期 | D127: 用地面积22660平方米（道路9383平方米、净用地13277平方米），计容建筑面积33192平方米 | E127: 2019 - 2020 | F127: =SUM(H127,J127) -> 16176 | H127: 16176 | L127: 2163 | M127: 2163 | N127: 550 | P127: 550 | T127: 440 | U127: 完成规划报建前期工作 | V127: 蔡建 | W127: 区空港委 | X127: 张绍炳 36802450 | Y127: 卢宜浩 36802450
A128: 三、休闲旅游绿港（102个） | F128: =SUM(F129:F140,F148,F154) -> 2128117 | G128: =SUM(G129:G140,G148,G154) -> 192975 | H128: 1516198 | I128: 2462 | J128: 216277 | K128: 200205 | L128: 223586 | M128: 117877 | N128: 454800 | O128: 53624 | P128: 330360 | Q128: 1000 | R128: 19816 | S128: 50000 | T128: 295029
A129: 113 | B129: 地铁九号线修复工程 | C129: 竣工 | D129: 对地铁九号线延线部分路面进行修复 | E129: 2017 - 2018 | F129: 7646 | H129: 7646 | L129: 388 | N129: 7258 | P129: 7258 | T129: 6115 | U129: 1、公益路（宝华路-迎宾路）修复工程总投资3634万元 2、秀全大道（新民路-新花街）修复工程总投资2581万元 3、新世纪广场修复工程总投资1133万元 4、云山大道（花果山公园站口）修复工程总投资298万元 | V129: 蒋福金 | W129: 城市管理局 | X129: 杨燕桓13902392590 | Y129: 向泽森13602239383
A130: 114 | B130: 望亭桥及延伸段工程 | C130: 竣工 | D130: 望亭桥跨度为95米，延伸段长156米，宽30米 | E130: 2016 - 2018 | F130: 2800 | H130: 1260 | J130: 1540 | L130: 2000 | N130: 800 | R130: 800 | U130: 主体工程建设 | V130: 蒋福金 | W130: 城市管理局 | X130: 杨燕桓13902392590 | Y130: 张建彤13602239788
A131: 115 | B131: 绿道网及休闲带建设-1号西部田园村落绿道 | C131: 竣工 | D131: 总长约48公里 | E131: 2014 - 2018 | F131: 2249 | H131: 2249 | L131: 900 | M131: 117 | N131: 1349 | P131: 1349 | T131: 1705 | U131: 道路建设，配套设施建设 | V131: 蒋福金 | W131: 城市管理局 | X131: 杨燕桓13902392590 | Y131: 向泽森13602239383
A132: 116 | B132: 花都区园林绿化景观提升建设工程 | C132: 续建 | D132: 道路绿化提升（城乡主干道、高快速路、铁路）、城乡公园广场绿化提升、滨水地区绿化提升、林业生态提升、生态示范园区建设 | E132: 2016 - 2019 | F132: 37373 | G132: 3203 | H132: 31670 | J132: 2500 | L132: 10544 | M132: 1434 | N132: 21529 | O132: 1127 | P132: 18002 | R132: 2400 | T132: 19867 | U132: 1、三东大道（东湖出入口-G107）绿化升级改造工程，工程总投资5041万元 2、沿江大道绿化升级改造工程工程总投资2000万元 3、迎宾大道绿化升级改造工程工程总投资3400万元 4、广清高速新华互通立交出入口绿化升级改造工程工程总投资2490万元 5、广清高速海㘵立交出入口绿化升级改造工程工程总投资2021万元 6、肇花高速狮岭互通立交出入口绿化升级改造工程工程总投资3521万元 7、马鞍山公园维修改造工程工程总投资1000万元 8、秀全公园人工湖水体修复工程工程总投资1000万元 9、天贵北路（三东大道-平步大道）景观提升工程工程总投资3500万元 10、天马河绿道公园工程总投资3500万元 11、花都广场周边道路[公益路（迎宾大道-三东大道）、紫薇路（公益路-天贵路）]人行道改造工程工程总投资1400万元 12、商业大道（花城路-新民路）道路改造工程工程总投资1200万元 13、道路主次干道（宝华路、新民路、新中路）改造工程工程总投资3000万元 14、马鞍山公园垃圾压缩站工程总投资4000万元 15、人民公园水体生态修复工程总投资300万元 | V132: 蒋福金 | W132: 城市管理局 | X132: 杨燕桓13902392590 | Y132: 向泽森13602239383 黄伟钟13926261488 | Z132: 区重点项目
A133: 117 | B133: 新街河河道综合整治和环境建设工程（花都湖）-环境建设工程 | C133: 续建 | D133: 本次建设包括： 1、花都湖公园三期环湖绿道新街河下游南北岸栈桥 2、花都博物馆（花都阁） 3、第四期景观照明工程 4、第四期视频监控及智能化系统 5、花都湖创建4A景区整治提升 | E133: 2017 - 2019 | F133: 26200 | H133: 26200 | L133: 22000 | M133: 14057 | N133: 4165 | O133: 1228 | P133: 2937 | T133: 3288 | U133: 1、花都湖公园三期环湖绿道新街河下游南北岸栈桥，工程总投资952.11万元 2、花都博物馆（花都阁），工程总投资2400万元。（其中区城市管理局负责土建部分及外围配套工程，投资1800万元，区文广新局负责装修布展，投资600万元） 3、第四期景观照明工程，工程总投资500万元 4、第四期视频监控及智能化系统，工程总投资3000万元 5、花都湖创建4A景区整治提升，工程总投资1235万元 | V133: 蒋福金 | W133: 城市管理局 | X133: 杨燕桓13902392590 | Y133: 黄伟钟13926261488
A134: 118 | B134: 广东花都湖湿地公园配套建设工程 | C134: 续建 | D134: 湿地生态系统的恢复、湿地科研监测设施建设、湿地科普宣教体系建设等 | E134: 2017 - 2019 | F134: 2800 | H134: 2800 | L134: 20 | N134: 1500 | P134: 1500 | T134: 900 | U134: 湿地生态系统的恢复、湿地科研监测设施建设、湿地科普宣教体系建设等 | V134: 蒋福金 | W134: 城市管理局 | X134: 杨燕桓13902392590 | Y134: 黄伟钟13926261488
A135: 119 | B135: 狮岭镇生活垃圾转运站 | C135: 新开工 | D135: 拟定狮岭镇南环路污水处理厂旁征30亩地，建筑面积5000平方米，硬底化面积13000平方米。控规为环境卫生设施用地，拟建一座8厢、预留两厢的垃圾压缩站，配备垃圾压缩车10辆的大型垃圾压缩站 | E135: 2018 - 2020 | F135: 12600 | H135: 12600 | N135: 4800 | P135: 4800 | T135: 3840 | U135: 征地、基建 | V135: 蒋福金 | W135: 狮岭镇 | X135: 黎汝坚 86846521 | Y135: 卢少红13509297872
A136: 120 | B136: 花都餐厨垃圾处理厂 | C136: 新开工 | D136: 总规模200吨/天。项目一期占地约40亩 | E136: 2018 - 2019 | F136: 142340 | J136: 142340 | L136: 30 | N136: 300 | R136: 300 | U136: 部分前期工作，厂房建设，设备购置 | V136: 蒋福金 | W136: 城市管理局 | X136: 杨燕桓13902392590 | Y136: 向泽森13602239383
A137: 121 | B137: 花东镇垃圾压缩站 | C137: 新开工 | D137: 规划选址位于我镇湾弓塘，东南面均临山，北面临机场高速北延线和在建的机场第二高速，西面是区空港委的高新产业园区，远离住宅区域。占地约18.31亩，总建筑面积约6000平方米，总设计建设一座5用1备的箱式脱水式垃圾压缩站、附属1座大件垃圾存放点、1座垃圾分类分拣中心场和1栋办公宿舍楼，配套压缩式对接垃圾车5辆，配套中央控制及监控系统，配套除臭设备及独立污水处理系统等，设计日均处理能力达到1000吨/天 | E137: 2018 - 2020 | F137: 4000 | H137: 2800 | I137: 1200 | N137: 900 | P137: 800 | Q137: 100 | T137: 800 | U137: 调整规划、地形测量、项目选址、规划设计条件、权属图、权属汇总、勘测定界报告、征地预公告、征地补偿安置方案及听证材料、征地补偿款付清的证明→耕地开垦费、社保人数、社保费、审核意见书等有序办理用地前期手续；项目建议书批复、设计招标、方案设计、修详规、地质钻探、初步设计、人防报批、初步设计批复、环评批复、单体规划报建、施工图设计、水土保持批复、施工图审查、预算编制等有序办理建设前期手续 | V137: 蒋福金 | W137: 花东镇 | X137: 赖小坤 86849588 | Y137: 曾献强 86849588 13808867126
A138: 122 | B138: 狮岭垃圾填埋场达标整治第三填埋区 | C138: 前期 | D138: 占地200亩，拟增加库容300万平方米 | E138: 2019 - 2020 | F138: 13000 | J138: 13000 | L138: 200 | N138: 6000 | R138: 6000 | U138: 填埋库区建设 | V138: 蒋福金 | W138: 城市管理局 | X138: 杨燕桓13902392590 | Y138: 向泽森13602239383
A139: 123 | B139: 花山镇垃圾压缩站改造 | C139: 前期 | D139: 位于铁山村16队，占地面积38亩 | E139: 2018 - 2020 | F139: 4208 | H139: 2946 | I139: 1262 | N139: 3000 | P139: 2100 | Q139: 900 | T139: 2100 | U139: 垃圾压缩站改造 | V139: 蒋福金 | W139: 花山镇 | X139: 李慧容13500011773 | Y139: 许有彬13926245588
A140: 安置区项目(7个) | F140: =SUM(F141:F147) -> 1418170 | G140: =SUM(G141:G147) -> 36455 | H140: 1157510 | J140: 24000 | K140: 200205 | L140: 149740 | M140: 76592 | N140: 258883 | P140: 208883 | S140: 50000 | T140: 192734
A141: 124 | B141: 广州白云国际机场扩建工程噪音区治理花都区治理项目安置区 | C141: 续建 | D141: 含保良北和龙口—清布两个安置区，主要建设住宅楼、公共配套设施和商业等，总建筑面积67.87万平方米 | E141: 2013 - 2019 | F141: 260660 | G141: 36455 | J141: 24000 | K141: 200205 | L141: 54000 | N141: 50000 | S141: 50000 | U141: 进行地下室结构、主体结构、墙体砌筑、外墙装饰、机电安装工程施工等 | V141: 蔡建 | W141: 区空港委 | X141: 张绍炳 36802450 13600019921 | Y141: 廖旭元 36801746 | Z141: 省、市、区重点项目
A142: 125 | B142: 花都区中轴线石岗安置区一期工程 | C142: 续建 | D142: 总用地面积为250亩，总建筑面积638008.2平方米（含地下室202187.8平方米），主要建设安置用住宅、商业、公建配套及祠堂等 | E142: 2014 - 2019 | F142: 244582 | H142: 244582 | L142: 45934 | M142: 36747 | N142: 34491 | P142: 34491 | T142: 27593 | U142: 北区：土建、装修及室外配套工程； 南区：1.7#、8#、9#30层主体结构施工完成； 2.2#、4#、6#楼主体结构施工完成至10层； 3.1#、3#、5#楼地下室结构施工完成 | V142: 姚汉钟 | W142: 花城街 建管中心 | X142: 黄志宇36881178 | Y142: 黄振宇 36884568 | Z142: 省、区重点项目
A143: 126 | B143: 花都区中轴线罗仙安置区工程 | C143: 续建 | D143: 总用地面积130.24亩，总建筑面积359934平方米（含地下室115960平方米），主要建设安置用住宅、商业、公建配套等 | E143: 2014 - 2019 | F143: 179819 | H143: 179819 | L143: 46353 | M143: 37082 | N143: 30638 | P143: 30638 | T143: 24511 | U143: 西区：土建、装修及室外配套工程； 东区：10#主体结构封顶 | V143: 姚汉钟 | W143: 花城街 建管中心 | X143: 黄志宇36881178 | Y143: 黄振宇 36884568 | Z143: 省、区重点项目
A144: 127 | B144: 花都区中轴线石岗安置区二期工程 | C144: 续建 | D144: 总用地面积为188.72亩，总建筑面积472361平方米（含地下室146100平方米），主要建设安置用住宅、商业、公建配套及祠堂等 | E144: 2014 - 2019 | F144: 137978 | H144: 137978 | L144: 3453 | M144: 2763 | N144: 15621 | P144: 15621 | T144: 12497 | U144: 1.基坑支护及桩基施工； 2.土方开挖及喷锚支护施工 | V144: 姚汉钟 | W144: 花城街 建管中心 | X144: 黄志宇36881178 | Y144: 黄振宇 36884568 | Z144: 省、区重点项目
A145: 128 | B145: 广州北站综合交通枢纽开发建设项目（天贵路万达城西侧）安置区 | C145: 新开工 | D145: 项目总用地160627平方米，总建筑面积897332平方米，主要建设安置房、配套公建、停车场及相关配套设施 | E145: 2018 - 2019 | F145: 415131 | H145: 415131 | N145: 90270 | P145: 90270 | T145: 90270 | U145: 完成桩基础及正负零以下结构施工，主体结构开始施工。 | V145: 姚汉钟 | W145: 交通局 | X145: 刘德康13609600918 | Y145: 王德毅13926264232 | Z145: 省、区重点项目
A146: 129 | B146: 广州北站项目安置区二期 | C146: 前期 | D146: 项目总用地约41264平方米，总建筑面积约20万平方米，主要建设安置房、配套商业、祠堂、地下停车场、其它配套公建及周边市政道路等 | E146: 2019 - 2020 | F146: 120000 | H146: 120000 | N146: 24967 | P146: 24967 | T146: 24967 | U146: 完成征地拆迁，项目立项，前期报建等工作及桩基础开始施工。 | V146: 姚汉钟 | W146: 交通局 | X146: 刘德康13609600918 | Y146: 王德毅13926264232 | Z146: 区重点项目
A147: 130 | B147: 测绘院搬迁置换项目 | C147: 前期 | D147: 项目总用地约23438平方米，总建筑面积约8.5万平方米 | E147: 2019 - 2020 | F147: 60000 | H147: 60000 | N147: 12896 | P147: 12896 | T147: 12896 | U147: 完成征地拆迁、项目立项及相关报建手续。 | V147: 姚汉钟 | W147: 交通局 | X147: 刘德康13609600918 | Y147: 麦锦锋18825026898
A148: 特色小镇（5个） | F148: =SUM(F149:F153) -> 14660 | G148: =SUM(G149:G153) -> 4000 | H148: 8660 | J148: 2000 | M148: 2120 | N148: 6308 | O148: 1500 | P148: 4148 | R148: 660 | T148: 3418
A149: 131 | B149: 狮岭皮革皮具跨境贸易小镇 | C149: 续建 | D149: 国家市场采购贸易方式试点、建设配套物流园区、皮具箱包成品市场、工业旅游（中国皮具产业文化创意园、狮岭纳海皮具饰博园、联合牛津广场）、人文旅游（盘古王公园、华严寺）、生态旅行（叶海生态园千亩桃花基地、义山樱花基地、秀全湖公园）、完善公共基础设施建设的方面；3平方公里的皮革皮具产业集群区域 | E149: 2016 - 2019 | F149: 6500 | G149: 3000 | H149: 1500 | J149: 2000 | M149: 2120 | N149: 2160 | O149: 1000 | P149: 500 | R149: 660 | T149: 400 | U149: 宝峰路进行公共基础配套设施建设；宝峰路的建筑外立面进行统一包装等；盘古王公园进行公共基础配套设施建设；狮岭（国际）皮革皮具城、狮岭壹号皮具箱包交易中心等按照特色小镇功能需求进行升级改造；加快推进打通广清高速螺塘站出入口 | V149: 闵飞 | W149: 狮岭镇 | X149: 黎汝坚 86846521 | Y149: 周南 86910738 | Z149: 区重点项目
A150: 132 | B150: 梯面生态旅游小镇 | C150: 新开工 | D150: 深谷生态修复项目占地455亩。进行自然景观改造、基础设施提升 | E150: 2018 - 2019 | F150: 2000 | G150: 1000 | H150: 1000 | N150: 1000 | O150: 500 | P150: 500 | T150: 400 | U150: 开展前期工作，并进行生态修复、自然景观改造、基础设施提升 | V150: 闵飞 | W150: 梯面镇 | X150: 黎群生 13609600668 | Y150: 曾昭泉 13602238849 | Z150: 区重点项目
A151: 133 | B151: 炭步岭南古村落小镇 | C151: 新开工 | D151: 建设旅游厕所、标识系统、文昌塔及其广场修葺；修缮谭氏祖祠、谭氏宗祠；打造洪拳文化展示厅 | E151: 2018 - 2019 | F151: 1060 | H151: 1060 | N151: 848 | P151: 848 | T151: 678 | U151: 开展前期工作，建设旅游厕所、标识系统、文昌塔及其广场修葺；修缮谭氏祖祠、谭氏宗祠；打造洪拳文化展示厅 | V151: 闵飞 | W151: 炭步镇 | X151: 何强13902391163 | Y151: 骆凤和 13556071999 | Z151: 区重点项目
A152: 134 | B152: 芙蓉健康休闲小镇 | C152: 前期 | D152: 游客服务中心功能完善；广场停车场升级改造；景区标识系统完善；西门建设；沿湖景观提升；景区建筑风貌整治 | E152: 2019 - 2020 | F152: 5100 | H152: 5100 | N152: 1800 | P152: 1800 | T152: 1440 | U152: 西门建设二期：包括西门建设、景区介绍与地图等标识系统、欢迎词、地标性景观的打造等；景区建筑风貌整治二期：按照景区风貌整治内容走施工流程，请施工单位对景区进行风貌整治和功能改造 | V152: 闵飞 | W152: 芙蓉管委办 | X152: 王文生 86853853 13926210668 | Y152: 胡文清 86853681 13922361866 | Z152: 区重点项目
A153: 135 | B153: 花山小镇 | C153: 前期 | D153: 对现有古村落进行修护完善，打造城市慢生活的特色休闲小镇 | E153: 2019 - 2020 | N153: 500 | P153: 500 | T153: 500 | U153: 编制小镇整体规划 | V153: 闵飞 | W153: 花山镇 | X153: 李慧容 13500011773 | Y153: 梁运洪13570382870
A154: 水利资源项目（79个） | F154: =SUM(F155:F233) -> 440071 | G154: =SUM(G155:G233) -> 149317 | H154: 259857 | J154: 30897 | L154: 37764 | M154: 23557 | N154: 138008 | O154: 49769 | P154: 78583 | R154: 9656 | T154: 60262
A155: 136 | B155: 新华污水处理厂厂内污泥减量技术改造工程 | C155: 竣工 | D155: 处理规模为40吨干固/天污泥处理设施 | E155: 2017 - 2018 | F155: 9677 | H155: 1936 | J155: 7741 | L155: 5807 | M155: 1500 | N155: 3870 | P155: 435 | R155: 3435 | T155: 348 | U155: 完成工程建设 | V155: 姚汉钟 | W155: 水务局 花都净水有限公司 | X155: 瞿海波 36807268 | Y155: 吴克艺 36808302
A156: 137 | B156: 花都区狮岭镇罗仙村排涝工程 | C156: 竣工 | D156: 本工程包括田美河1434米的河道拓宽整治，沿平步大道北侧新建排涝箱涵1526米，新建橡胶坝两座，恢复人行桥1座，新建人行桥1座，新建公路桥1座 | E156: 2012 - 2018 | F156: 8626 | G156: 3450 | H156: 5176 | L156: 8612 | M156: 6083 | N156: 1094 | P156: 1094 | T156: 876 | U156: 完成结算并竣工验收 | V156: 姚汉钟 | W156: 水务局 | X156: 孟庆强36898898 | Y156: 吴艺文13632471216
A157: 138 | B157: 广州市花都区花城街东边村排涝工程 | C157: 竣工 | D157: 本工程工程等别为Ⅳ等，主要建筑物为4级，次要及临时建筑物为5级，工程设计排涝标准采用20年一遇24小时暴雨不成灾，设计防洪标准为20年一遇洪水 | E157: 2018 | F157: 7612 | G157: 3045 | H157: 4567 | L157: 2612 | M157: 2612 | N157: 5000 | O157: 2000 | P157: 3000 | T157: 2400 | U157: 完成工程建设内容 | V157: 姚汉钟 | W157: 水务局 | X157: 孟庆强36898898 | Y157: 吴艺文13632471216
A158: 139 | B158: 松园路-三华村雨水渠箱下穿京广铁路及京广高铁花都桥工程 | C158: 竣工 | D158: 新建箱涵总长192.568米。B*H=8*2长48.24米，全部现浇；B*H=8*3长144.328米，其中预制顶管21米，现浇123.328米等其它附属设施 | E158: 2018 | F158: 5500 | H158: 5500 | L158: 215 | M158: 100 | N158: 5285 | P158: 5285 | T158: 4228 | U158: 完成工程建设内容 | V158: 姚汉钟 | W158: 水务局 | X158: 孟庆强36898898 | Y158: 吴艺文13632471216
A159: 140 | B159: 广州车辆厂厂区周边水浸整治工程 | C159: 竣工 | D159: 本工程新建BxH=3mx2m雨水渠箱510米，BxH=3mx1.5m雨水渠箱345米，BxH=2.5mx2m雨水渠箱542米，BxH=2mx2m雨水渠箱462米，d400~d1200雨水管道369米，以及包括雨水支管、检查井、沉砂井、雨水井、管线迁改和保护、路面修复工程、交通疏解及其他配套工程等 | E159: 2018 | F159: 4496 | H159: =F159 -> 4496 | L159: 360 | M159: =L159*0.3 -> 108 | N159: 4136 | P159: =N159 -> 4136 | T159: 3309 | U159: 建设进度达70% | V159: 姚汉钟 | W159: 水务局 | X159: 孟庆强36898898 | Y159: 吴艺文13632471216
A160: 141 | B160: 狮岭污水处理厂厂内污泥减量技术改造工程 | C160: 竣工 | D160: 处理规模为14.4吨干固/天污泥处理设施 | E160: 2017 - 2018 | F160: 4091 | H160: 818 | J160: 3273 | L160: 2455 | N160: 1636 | P160: 327 | R160: 1309 | T160: 262 | U160: 完成工程建设 | V160: 姚汉钟 | W160: 水务局 花都净水有限公司 | X160: 瞿海波 36807268 | Y160: 吴克艺 36808302
A161: 142 | B161: 花都区雅瑶涌支流整治工程 | C161: 竣工 | D161: 雅瑶支涌整治工程I标段拟对雅瑶涌支流（起点雅图奥园分叉口至终点进棉庄附近），范围为桩号（0+000~2+247与2+724~2+913），长约2.6公里的河道整治，包括河道清淤、河道断面拓宽、填筑堤防。本工程洪水标准采用20年一遇，堤防级别为4级，主要建筑物级别为4级，次要建筑物级别5级，临时建筑物级别5级。其中建筑物包括一座箱涵、一根涵管及四座绿化平台 | E161: 2018 | F161: 4080 | G161: =F161*0.4 -> 1632 | H161: =F161*0.6 -> 2448 | L161: 2115 | N161: 1965 | O161: 786 | P161: 1179 | T161: 944 | U161: 完成所有工程量 | V161: 姚汉钟 | W161: 水务局 | X161: 孟庆强36898898 | Y161: 吴艺文13632471216
A162: 143 | B162: 大陵河综合整治工程（天马丽苑箱涵出口至河口） | C162: 竣工 | D162: 主要工程内容为河道拓宽清淤、两岸堤防加固，对沿线部分跨河、穿堤建筑物整治等 | E162: 2017 - 2018 | F162: 3750 | G162: 1500 | H162: 2250 | L162: 2200 | M162: 2200 | N162: 1550 | O162: 500 | P162: 1050 | T162: 840 | U162: 完成工程建设，完成单位工程验收 | V162: 姚汉钟 | W162: 水务局 新华街 | X162: 林钟辉 86838333 | Y162: 罗浩彪15902069670
A163: 144 | B163: 广州市花都区九湾潭水库灌区续建配套与节水改造工程 | C163: 竣工 | D163: 工程主要建设内容为对西干渠部分现状渠道破损处进行整治修复，新建渠道两侧堤顶路，对现状3座分水闸，3座倒虹吸，1座机耕桥进行拆除重建，重建管养站2座，设备房2座，信息房1座，新建4座量水设施，对电站排洪闸及大东排洪闸进行电气再造 | E163: 2017 - 2018 | F163: 3209 | G163: 1284 | H163: 1925 | L163: 1284 | M163: 1284 | N163: 1925 | P163: 1925 | T163: 1540 | U163: 完工并进行结算 | V163: 姚汉钟 | W163: 水务局 | X163: 孟庆强36898898 | Y163: 吴艺文13632471216
A164: 145 | B164: 花都区田美河（花都文旅城段）整治工程 | C164: 竣工 | D164: 本工程主要对CBD范围内田美河平布大道箱涵上游1875米的河道进行整治。堤防级别为4级，主要建筑物级别为4级，防洪标准采用20年一遇。20年一遇合计洪峰流量为130.3立方米/秒，导流建筑物设计洪水标准采用5年一遇 | E164: 2017 - 2018 | F164: 2819 | G164: 1128 | H164: 1691 | L164: 1691 | M164: 1691 | N164: 1128 | O164: 1128 | U164: 完工并进行结算 | V164: 姚汉钟 | W164: 水务局 | X164: 孟庆强36898898 | Y164: 吴艺文13632471216
A165: 146 | B165: 三东大道新建渠箱工程 | C165: 竣工 | D165: 新建渠箱BXH=4.2X1.2~6.0X1.5米，总长为895米；管道DN300~d800,总长为513米，检查井27座，沉砂井10座，双箅平入式雨水口64座，以及管线迁改和保护、路面修复工程、交通疏解及其他配套工程 | E165: 2018 | F165: 2642 | H165: =F165 -> 2642 | L165: 96 | M165: 81 | N165: 2546 | P165: 2546 | T165: 2037 | U165: 完成工程建设内容 | V165: 姚汉钟 | W165: 水务局 | X165: 孟庆强36898898 | Y165: 吴艺文13632471216
A166: 147 | B166: 龙珠路新建雨水管道工程 | C166: 竣工 | D166: 新建排水管道d300～d1500,总长约2745米，检查井、沉砂井共79座，双篦平入式雨水口151座，包括零星排水设施工程以及管线迁改、路面修复工程等 | E166: 2018 | F166: 2443 | H166: =F166 -> 2443 | L166: 117 | M166: 47 | N166: 2326 | P166: =N166 -> 2326 | T166: 1861 | U166: 完成工程建设内容 | V166: 姚汉钟 | W166: 水务局 | X166: 孟庆强36898898 | Y166: 吴艺文13632471216
A167: 148 | B167: 新都桥西片区水浸整治工程 | C167: 竣工 | D167: 本工程新建截水沟共52米，d800~d1500排水管渠长约294米，BxH=2200x1500雨水渠箱88米，BxH=3000x1500雨水渠箱66米，BxH=4000x1500雨水渠箱48米，BxH=5000x1500雨水渠箱486米，d400~d800污水管道26米；管道检查井24座、沉砂井8座、顶管工作井1座、顶管接收井1座、倒虹井2座，引水口闸槽井1座，双篦平入式雨水口40座，以及管线迁改和保护、路面和绿化修复工程、交通疏解及其他配套工程 | E167: 2017 - 2018 | F167: 2043 | H167: =F167 -> 2043 | L167: 820 | M167: 65 | N167: 1223 | P167: 1223 | T167: 978 | U167: 完成工程建设内容 | V167: 姚汉钟 | W167: 水务局 | X167: 孟庆强36898898 | Y167: 吴艺文13632471216
A168: 149 | B168: 建设北路（迎宾大道-松园路）渠箱工程 | C168: 竣工 | D168: 新建d1500~1.8米x1.5米~2.0米x1.5米~2.8米x1.5米雨水渠箱666米,包括零星排水设施工程以及管线迁改、路面修复工程等 | E168: 2018 | F168: 1870 | H168: =F168 -> 1870 | L168: 83 | M168: 33 | N168: 1787 | P168: 1787 | T168: 1430 | U168: 完成工程建设内容 | V168: 姚汉钟 | W168: 水务局 | X168: 孟庆强36898898 | Y168: 吴艺文13632471216
A169: 150 | B169: 松园路（建设北路-京广铁路）渠箱工程 | C169: 竣工 | D169: 新建BxH=2.8米x1.5米~3.5米x1.5米雨水渠箱630米,包括零星排水设施工程以及管线迁改、路面修复工程等 | E169: 2018 | F169: 1630 | H169: =F169 -> 1630 | L169: 75 | M169: =L169*0.4 -> 30 | N169: 1555 | P169: 1555 | T169: 1244 | U169: 完成工程建设内容 | V169: 姚汉钟 | W169: 水务局 | X169: 孟庆强36898898 | Y169: 吴艺文13632471216
A170: 151 | B170: 九湾潭水库除险加固工程 | C170: 竣工 | D170: 设计洪水标准为100年一遇，校核洪水标准为1000年一遇 | E170: 2017 - 2018 | F170: 1484 | G170: 594 | H170: 890 | L170: 890 | M170: 181 | N170: 594 | O170: 594 | U170: 完工并进行结算 | V170: 姚汉钟 | W170: 水务局 | X170: 孟庆强36898898 | Y170: 吴艺文13632471216
A171: 152 | B171: 广州市花都区三甲水闸重建工程 | C171: 竣工 | D171: 工程规模为中型，工程等别为Ⅲ等，三甲水闸属平原区水闸，洪水标准按20年一遇洪水设计，50年一遇洪水校核。主要水工建筑物为3级，临时性建筑物为5级 | E171: 2018 | F171: 1098 | G171: 439 | H171: 659 | N171: 1098 | O171: 439 | P171: 659 | T171: 527 | U171: 完成工程全部建设内容 | V171: 姚汉钟 | W171: 水务局 | X171: 孟庆强36898898 | Y171: 吴艺文13632471216
A172: 153 | B172: 排水管网清疏及养护工程 | C172: 竣工 | D172: 狮岭镇排水管网清疏养护 | E172: 2018 | F172: 1036 | G172: 414 | H172: 622 | N172: 1036 | O172: 414 | P172: 622 | T172: 498 | U172: 排水管网检测摸查、管线探测、管道清淤 | V172: 姚汉钟 | W172: 水务局 狮岭镇 | X172: 周丽嫦13926263280 | Y172: 徐有毅13609600480
A173: 154 | B173: 花都区殡仪馆供水工程 | C173: 竣工 | D173: 起点位于狮岭镇顺达北街，铺设供水管道至区殡仪馆用地红线，管道长约4.5公里;中途需建设加压泵站，占地面积约300平方米 | E173: 2017 - 2018 | F173: 794 | H173: 794 | L173: 80 | M173: 3 | N173: 714 | P173: 714 | U173: 年底完工 | V173: 姚汉钟 | W173: 水务局 花都自来水有限公司 | X173: 彭 伟 36890996 | Y173: 岑哲晞 36898685
A174: 155 | B174: 松园路（花城北路-建设北路）渠箱工程 | C174: 竣工 | D174: 新建BxH=2.0米x1.5米雨水渠箱313米,包括零星排水设施工程以及管线迁改、路面修复工程等 | E174: 2018 | F174: 793 | H174: 793 | L174: 38 | M174: 16 | N174: 755 | P174: =N174 -> 755 | T174: 604 | U174: 完成工程建设内容 | V174: 姚汉钟 | W174: 水务局 | X174: 孟庆强36898898 | Y174: 吴艺文13632471216
A175: 156 | B175: 花都区花山镇水库移民项目 | C175: 竣工 | D175: 福源村道路硬底化、儒林村十六队环境整治、儒林村九队渠道整治及路灯建设 | E175: 2018 | F175: 721 | G175: 721 | L175: 721 | M175: 600 | N175: 721 | O175: 721 | T175: 577 | U175: 福源村道路硬底化、儒林村十六队环境整治、儒林村九队渠道整治及路灯建设 | V175: 姚汉钟 | W175: 水务局 花山镇 | X175: 卢汉勇86949682 | Y175: 江耀章 86949491
A176: 157 | B176: 污水管网清疏及养护工程 | C176: 竣工 | D176: 狮岭镇污水管网清淤及养护 | E176: 2018 | F176: 693 | G176: 277 | H176: 416 | N176: 693 | O176: 277 | P176: 416 | T176: 333 | U176: 排水管网检测摸查，管线探测，管道清淤，管道塌方等市政设施应急处理 | V176: 姚汉钟 | W176: 水务局 狮岭镇 | X176: 周丽嫦13926263280 | Y176: 徐有毅13609600480
A177: 158 | B177: 花都区芙蓉嶂水库停车场至芙蓉大酒店间行车拦水坝除险加固工程 | C177: 竣工 | D177: 本工程建议采用下游护坡和消能的方案，结合坝面原有的沥青砼路面和上游边坡砼护面，将土坝保护起来，形成过流条件，保留坝面溢流的功能。在消力池下游抛石填筑，对坝基渗流形成压渗 | E177: 2018 | F177: 600 | H177: 600 | N177: 600 | P177: 600 | T177: 480 | U177: 施工图设计、出图、预算送审、施工招标、工程施工、工程竣工验收等 | V177: 姚汉钟 | W177: 水务局 芙蓉管委办 | X177: 王文生13926293600 | Y177: 胡文清13922361866
A178: 159 | B178: 镜湖大道朗悦君廷段雨水渠箱工程 | C178: 竣工 | D178: 新建300米Ф800管 | E178: 2018 | F178: 450 | H178: 450 | N178: 450 | P178: 450 | T178: 360 | U178: 完成前期工作并进场施工，完成主体工程 | V178: 姚汉钟 | W178: 水务局 | X178: 孟庆强36898898 | Y178: 吴艺文13632471216
A179: 160 | B179: 赤坭镇集贤新村至白坭河排洪渠道工程 | C179: 竣工 | D179: 新建赤坭镇集贤新村至白坭河排洪渠道 | E179: 2018 | F179: 380 | H179: 380 | N179: 380 | P179: 380 | T179: 304 | U179: 完成全部建设内容 | V179: 姚汉钟 | W179: 水务局 赤坭镇 | X179: 谢有桂86841204 | Y179: 林锦聪 86841352
A180: 161 | B180: 花都区花山镇磨刀坑水库除险加固整治工程 | C180: 竣工 | D180: 对磨刀坑水库大坝、溢洪道和附属设施除险加固改造 | E180: 2017 - 2018 | F180: 375 | G180: 150 | H180: 225 | L180: 300 | M180: 300 | N180: 75 | P180: 75 | T180: 60 | U180: 完成大坝主体建设 | V180: 姚汉钟 | W180: 水务局 花山镇 | X180: 卢汉勇86949681 | Y180: 江耀章 86949490
A181: 162 | B181: 赤坭镇培正大道与114省道交汇路口新建排洪渠道工程 | C181: 竣工 | D181: 新建直径1.5米，长度约700米涵管 | E181: 2018 | F181: 350 | H181: 350 | N181: 350 | P181: 350 | T181: 280 | U181: 完成全部建设内容 | V181: 姚汉钟 | W181: 水务局 赤坭镇 | X181: 谢有桂86841204 | Y181: 林锦聪 86841352
A182: 163 | B182: 花都区梯面镇正迳河整治工程 | C182: 竣工 | D182: 新建两岸堤防、对河涌进行清淤、修建防汛道路、两岸绿化等。防御标准为20年一遇，排涝标准为20年一遇，24小时暴雨一天排干。堤防工程等级为4等，堤防级别为4级。整治堤岸河道长330米 | E182: 2018 | F182: 315 | G182: 126 | H182: 189 | N182: 315 | O182: 126 | P182: 189 | T182: 151 | U182: 新建两岸堤防、对河涌进行清淤、修建防汛道路、两岸绿化等。防御标准为20年一遇，排涝标准为20年一遇，24小时暴雨一天排干。堤防工程等级为4等，堤防级别为4级。整治堤岸河道长330M | V182: 姚汉钟 | W182: 水务局 梯面镇 | X182: 马卫民13926268222 | Y182: 杜国杰13694282740
A183: 164 | B183: 花都区赤坭镇铜鼓潭水库除险加固整治工程 | C183: 竣工 | D183: 本水库设计洪水标准为20年一遇，校核标准200年一遇 | E183: 2017 - 2018 | F183: 292 | G183: 117 | H183: 175 | L183: 120 | M183: 120 | N183: 172 | O183: 81 | P183: 91 | T183: 73 | U183: 基本完成全部建设内容 | V183: 姚汉钟 | W183: 水务局 赤坭镇 | X183: 谢有桂86841204 | Y183: 林锦聪 86841352
A184: 165 | B184: 花都区赤坭镇缠岗水库除险加固整治工程 | C184: 竣工 | D184: 本次设计洪水标准为10年一遇设计，50年一遇校核 | E184: 2017 - 2018 | F184: 270 | G184: 108 | H184: 162 | L184: 40 | M184: 40 | N184: 230 | O184: 73 | P184: 157 | T184: 126 | U184: 基本完成全部建设内容 | V184: 姚汉钟 | W184: 水务局 赤坭镇 | X184: 谢有桂86841204 | Y184: 林锦聪 86841352
A185: 166 | B185: 花东镇大东村新建强排泵站工程 | C185: 竣工 | D185: 大东村新建强排泵站一座 | E185: 2018 | F185: 250 | H185: 250 | N185: 250 | P185: 250 | T185: 200 | U185: 完成全部建设内容 | V185: 姚汉钟 | W185: 水务局 花东镇 | X185: 赖小坤13802747942 | Y185: 黄英能13926281633
A186: 167 | B186: 前进村东坑安置区水浸黑点整治工程 | C186: 竣工 | D186: 对排水管改造，铺设φ1000管道400米 | E186: 2018 | F186: 230 | H186: 230 | N186: 230 | P186: 230 | T186: 184 | U186: 完成全部建设内容 | V186: 姚汉钟 | W186: 水务局 狮岭镇 | X186: 周丽嫦13926263280 | Y186: 徐有毅13609600480
A187: 168 | B187: 花东镇高溪村新建强排泵站工程 | C187: 竣工 | D187: 高溪村新建强排泵站一座 | E187: 2018 | F187: 200 | H187: 200 | N187: 200 | P187: 200 | T187: 160 | U187: 完成全部建设内容 | V187: 姚汉钟 | W187: 水务局 花东镇 | X187: 赖小坤13802747942 | Y187: 黄英能13926281633
A188: 169 | B188: 花东镇凤岗村新建强排泵站工程 | C188: 竣工 | D188: 凤岗村新建强排泵站一座 | E188: 2018 | F188: 200 | H188: 200 | N188: 200 | P188: 200 | T188: 160 | U188: 完成全部建设内容 | V188: 姚汉钟 | W188: 水务局 花东镇 | X188: 赖小坤13802747942 | Y188: 黄英能13926281633
A189: 170 | B189: 康政路水浸黑点整治工程 | C189: 竣工 | D189: 对黑点范围内的管道清淤一次 ；新铺设2米渠箱243米 | E189: 2018 | F189: 188 | H189: 188 | N189: 188 | P189: 188 | T189: 150 | U189: 完成全部建设内容 | V189: 姚汉钟 | W189: 水务局 狮岭镇 | X189: 周丽嫦13926263280 | Y189: 徐有毅13609600480
A190: 171 | B190: 铜鼓坑河倒虹吸改造工程 | C190: 竣工 | D190: 在倒虹吸入口左岸加建排洪闸，原有三孔倒虹吸原址重建，改为一孔箱形倒虹吸，增加其排污能力，横跨铜鼓坑河的倒虹吸箱顶部需与河底平齐 | E190: 2017 - 2018 | F190: 176 | G190: 71 | H190: 105 | N190: 176 | O190: 71 | P190: 105 | T190: 84 | U190: 完成施工，并进行完工验收 | V190: 姚汉钟 | W190: 水务局 | X190: 孟庆强36898898 | Y190: 陈惠红15818106747
A191: 172 | B191: 元岭河倒虹吸改造工程 | C191: 竣工 | D191: 原有三孔倒虹吸原址重建，改为一孔箱形倒虹吸，增加其排污能力，横跨元岭河的倒虹吸箱顶部需与河底平齐 | E191: 2017 - 2018 | F191: 117 | G191: 47 | H191: 70 | N191: 117 | O191: 47 | P191: 70 | T191: 56 | U191: 完成施工，并进行完工验收 | V191: 姚汉钟 | W191: 水务局 | X191: 孟庆强36898898 | Y191: 陈惠红15818106747
A192: 173 | B192: 花都区花山镇工业园排洪渠箱涵改造工程 | C192: 竣工 | D192: 重建排洪渠箱涵一座，长37米 | E192: 2017 - 2018 | F192: 113 | G192: 45 | H192: 68 | N192: 113 | O192: 45 | P192: 68 | T192: 54 | U192: 完成箱涵主体建设 | V192: 姚汉钟 | W192: 水务局 花山镇 | X192: 卢汉勇86949681 | Y192: 江耀章 86949490
A193: 174 | B193: 赤坭镇横沙桥底新建排洪渠道工程 | C193: 竣工 | D193: 新建直接1.5米，长度为200米涵管 | E193: 2018 | F193: 110 | H193: 110 | N193: 110 | P193: 110 | T193: 88 | U193: 完成全部建设内容 | V193: 姚汉钟 | W193: 水务局 赤坭镇 | X193: 谢有桂86841204 | Y193: 林锦聪 86841352
A194: 175 | B194: 铁山河灌溉排洪闸改造工程 | C194: 竣工 | D194: 拆除原有旧闸，于原闸址下游按水闸功能，分别新建灌溉闸及排洪闸，排洪闸下游设计排洪渠道进铁山河，满足流溪河花干渠排洪要求 | E194: 2017 - 2018 | F194: 92 | G194: 37 | H194: 55 | N194: 92 | O194: 37 | P194: 55 | T194: 44 | U194: 完成施工，并进行完工验收 | V194: 姚汉钟 | W194: 水务局 | X194: 孟庆强36898898 | Y194: 陈惠红15818106747
A195: 176 | B195: 花东镇北兴村重建排水渠道工程 | C195: 竣工 | D195: 重建排水渠道1公里 | E195: 2018 | F195: 80 | H195: 80 | N195: 80 | P195: 80 | T195: 64 | U195: 完成全部建设内容 | V195: 姚汉钟 | W195: 水务局 花东镇 | X195: 赖小坤13802747942 | Y195: 黄英能13926281633
A196: 177 | B196: 花都区马溪电排站重建工程 | C196: 续建 | D196: 工程设计排涝标准为20年一遇24小时暴雨不成灾。泵站规模为Ⅲ等中型工程，主要建筑物为3级，次要建筑物为4级，临时建筑物为5级 | E196: 2017 - 2019 | F196: 4617 | G196: 1847 | H196: 2770 | L196: 923 | M196: 461 | N196: 3251 | O196: 1478 | P196: 1773 | T196: 1418 | U196: 完成桩基础；导流明渠临时自排闸；完成泵房土建工程；前池段、出水池段结构施工；清污桥段、首尾段护坦施工 | V196: 姚汉钟 | W196: 水务局 | X196: 孟庆强36898898 | Y196: 吴艺文13632471216
A197: 178 | B197: 花都区铜鼓坑综合整治工程（106国道至新庄水库） | C197: 新开工 | D197: 对106国道桥～新庄水库之间约12.75公里长的河道进行综合治理，堤防设计防洪标准为20年一遇，穿堤建筑物的设计洪水标准与所在堤防相同，治涝设计标准按涝区10年一遇24小时暴雨所产生的径流量：城镇及菜地按一天排干设计：农田按三天排干设计。本工程等级为Ⅳ级，主要建筑物级别为4级，穿堤建筑物设计标准与所在堤防相同，次要建筑物及临时建筑物级别5级 | E197: 2018 - 2019 | F197: 22358 | G197: 8943 | H197: 13415 | L197: 6000 | M197: 6000 | N197: 7400 | O197: 5000 | P197: 2400 | T197: 1920 | U197: 建设进度达50% | V197: 姚汉钟 | W197: 水务局 | X197: 孟庆强36898898 | Y197: 吴艺文13632471216 | Z197: 区重点项目
A198: 179 | B198: 广州市花都区大坳拦河坝花都灌区续建配套与节水改造工程 | C198: 新开工 | D198: 干渠灌排渠设计流量介于20-50立方米/小时之间，渠道及渠系建筑物工程级别为4级，支渠灌排渠设计流量小于5立方米/小时，渠道工程级别为5级 | E198: 2018 - 2020 | F198: 22345 | G198: 8938 | H198: 13407 | N198: 12513 | O198: 8938 | P198: 3575 | T198: 2860 | U198: 开始进场施工，并完成工程建设内容50% | V198: 姚汉钟 | W198: 水务局 | X198: 孟庆强36898898 | Y198: 吴艺文13632471216 | Z198: 区重点项目
A199: 180 | B199: 广州市花都区福源水库灌区续建配套与节水改造工程 | C199: 新开工 | D199: 本工程等别为Ⅲ等。设计洪水标准为10年一遇最大24小时设计暴雨3天平均排干 | E199: 2018 - 2019 | F199: 3725 | G199: 1490 | H199: 2235 | N199: 1967 | O199: 894 | P199: 1073 | T199: 858 | U199: 开始进场施工，并完成工程建设内容50% | V199: 姚汉钟 | W199: 水务局 | X199: 孟庆强36898898 | Y199: 吴艺文13632471216
A200: 181 | B200: 花东镇三凤村排洪渠整治工程 | C200: 新开工 | D200: 整治花都大道以南至机场北排洪渠之间约2公里渠箱及排洪渠，设计防洪标准为20年一遇，排涝标准为20年一遇24小时暴雨不成灾。复核现状花安东路箱涵及下游排洪渠过流能力，不满足则拓宽；对箱涵及排洪渠清淤疏浚，并按防洪和排涝标准进行堤岸达标整治 | E200: 2018-2019 | F200: 2600 | G200: 1040 | H200: 1560 | N200: 200 | P200: 200 | T200: 200 | U200: 项目建议书批复、设计招标、方案设计、防洪评价报告、规划报建、地质钻探、初步设计、初步设计批复、环评批复、施工图设计、水土保持批复、施工图审查、预算编制、预算评审等有序办理建设前期手续 | V200: 姚汉钟 | W200: 花东镇 | X200: 赖小坤 86849588 | Y200: 曾献强 86849588 13808867126
... 117 more rows
